Workbook

Sheet 1.-CEDULA- académico
B1: PROGRAMA OPERATIVO ANUAL 2017
B3: FORMATO 01 "DESARROLLO DE PROCESOS"
B5: UNIVERSIDAD: TECNOLÓGICA DE QUERÉTARO
B7: DENOMINACIÓN DEL PROCESO: (1) ACADÉMICO | Q7: NUM. DE PROCESO (2) | Y7: TIPO DE PROCESO (3) | DR7: ASEGURAMIENTO DE LA CALIDAD DE LOS PROGRAMAS EDUCATIVOS
DR8: INDICADOR | DS8: FÓRMULA | DT8: Unidad de Medida | DU8: Media Nacional
Q9: 1 | Y9: Pertinencia | DR9: Porcentaje de programas evaluables de TSU certificados en el nivel 1 de CIEES y/o acreditados por algún organismo reconocido por el COPAES | DS9: (Número de programas evaluables de TSU certificados en el nivel 1 de CIEES y/o acreditados por organismos reconocidos por el COPAES/ Total de programas de TSU evaluables)*100 | DT9: PE | DU9: 87
DR10: Porcentaje de programas evaluables de licenciatura certificados en el nivel 1 de CIEES y/o acreditados por algún organismo reconocido por el COPAES | DS10: (Número de programas evaluables de licenciatura certificados en el nivel 1 de CIEES y/o acreditados por organismos reconocidos por el COPAES/ Total de programas de Licenciatura evaluables)*100 | DT10: PE | DU10: 64
B11: ÁREA RESPONSABLE ( 4 ) | DR11: Porcentaje de estudiantes que realiza estudios en programas de TSU certificados en el nivel 1 de CIEES y/o acreditados por el COPAES | DS11: (Número de estudiantes que realizan sus estudios en programas de TSU certificados en el nivel 1 de CIEES y/o acreditados por el COPAES/ Número de estudiantes que realizan sus estudios de TSU en programas evaluables)*100 | DT11: Estudiantes | DU11: 91
DR12: Porcentaje de estudiantes que realiza estudios en programas de Licenciatura certificados en el nivel 1 de CIEES y/o acreditados por el COPAES | DS12: (Número de estudiantes que realizan sus estudios en programas de licenciatura certificados en el nivel 1 de CIEES y/o acreditados por el COPAES/ Número de estudiantes que realizan sus estudios de Licenciatura en programas evaluables)*100 | DT12: Estudiantes | DU12: 65
B13: Secretaría Académica | DR13: Porcentaje de Avance en la Obtención de la Certificación en los tres procesos básicos en la norma ISO 9001-2008 | DS13: (Número de certificaciones obtenidas en el año t/número de certificaciones programadas en el año t)*100 | DT13: Certificaciones | DU13: 93
B14: Líneas estratégicas del PIDE del SUT o SUP 2013-2018 al que se da atención. ( 5 ) | DR14: FORTALECIMIENTO DE LA PERTINENCIA DE LA EDUCACIÓN SUPERIOR
B15: Aseguramiento de la calidad de los programas e instituciones | DR15: INDICADOR | DS15: FÓRMULA | DT15: Unidad de Medida | DU15: Media Nacional
B16: INDICADORES ( 6 ) | DR16: Número de estudios de trayectoria y de egresados llevados a cabo en el Año | DS16: Número de estudios de trayectoria y de egresados llevados a cabo en el año | DT16: Estudios | DU16: 447
B17: NOMBRE DEL INDICADOR (6.1) | C17: FÓRMULA | D17: UNIDAD DE MEDIDA | E17: META NACIONAL 2017 PIDE 2013-2018 | J17: CONTEXTO ACTUAL Y A FUTURO DEL INDICADOR (6.2) | V17: Total alcanzado (Se reporta en el tercer cuatrimestre) (6.3) | DR17: Porcentaje de programas educativos con Análisis Situacional del Trabajo (AST) | DS17: (Programas educativos en la institución con AST vigentes/ total de programas educativos en la institución)*100 | DT17: Análisis | DU17: 96
B18: Porcentaje de programas evaluables de TSU certificados en el nivel 1 de CIEES y/o acreditados por algún organismo reconocido por el COPAES | C18: =(IF(B18="Porcentaje de programas evaluables de TSU certificados en el nivel 1 de CIEES y/o acreditados por algún organismo reconocido por el COPAES",DS9,IF(B18="Porcentaje de programas evaluables de licenciatura certificados en el nivel 1 de CIEES y/o acreditados por algún organismo reconocido por el COPAES",DS10,IF(B18="Porcentaje de estudiantes que realiza estudios en programas de TSU certificados en el nivel 1 de CIEES y/o acreditados por el COPAES",DS11,IF(B18="Porcentaje de estudiantes que realiza estudios en programas de Licenciatura certificados en el nivel 1 de CIEES y/o acreditados por el COPAES",DS12,IF(B18="Porcentaje de Avance en la Obtención de la Certificación en los tres procesos básicos en la norma ISO 9001-2008",DS13)))))) -> (Número de programas evaluables de TSU certificados en el nivel 1 de CIEES y/o acreditados por organismos reconocidos por el COPAES/ Total de programas de TSU evaluables)*100 | D18: =(IF(B18="Porcentaje de programas evaluables de TSU certificados en el nivel 1 de CIEES y/o acreditados por algún organismo reconocido por el COPAES",DT9,IF(B18="Porcentaje de programas evaluables de licenciatura certificados en el nivel 1 de CIEES y/o acreditados por algún organismo reconocido por el COPAES",DT10,IF(B18="Porcentaje de estudiantes que realiza estudios en programas de TSU certificados en el nivel 1 de CIEES y/o acreditados por el COPAES",DT11,IF(B18="Porcentaje de estudiantes que realiza estudios en programas de Licenciatura certificados en el nivel 1 de CIEES y/o acreditados por el COPAES",DT12,IF(B18="Porcentaje de Avance en la Obtención de la Certificación en los tres procesos básicos en la norma ISO 9001-2008",DT13)))))) -> PE | E18: =(IF(B18="Porcentaje de programas evaluables de TSU certificados en el nivel 1 de CIEES y/o acreditados por algún organismo reconocido por el COPAES",DU9,IF(B18="Porcentaje de programas evaluables de licenciatura certificados en el nivel 1 de CIEES y/o acreditados por algún organismo reconocido por el COPAES",DU10,IF(B18="Porcentaje de estudiantes que realiza estudios en programas de TSU certificados en el nivel 1 de CIEES y/o acreditados por el COPAES",DU11,IF(B18="Porcentaje de estudiantes que realiza estudios en programas de Licenciatura certificados en el nivel 1 de CIEES y/o acreditados por el COPAES",DU12,IF(B18="Porcentaje de Avance en la Obtención de la Certificación en los tres procesos básicos en la norma ISO 9001-2008",DU13)))))) -> 87 | J18: 2016 | P18: 2017 | DR18: Número de estudios de factibilidad elaborados | DS18: Número de estudios de factibilidad elaborados | DT18: Estudios | DU18: 243
J19: Número actual | M19: Porcentaje actual | P19: Número a lograr | S19: Porcentaje a lograr | V19: Número alcanzado | Y19: Porcentaje alcanzado | DR19: AUMENTO CON EFICACIA DE LA COBERTURA
J20: 10 | M20: =(10/13)*100 -> 76.92307692 | P20: 11 | S20: =(11/13)*100 -> 84.61538462 | V20: 10 | Y20: =(10/13)*100 -> 76.92307692 | DR20: INDICADOR | DS20: FÓRMULA | DT20: Unidad de Medida | DU20: Media Nacional
DR21: Número de estudiantes inscritos en TSU | DS21: Número de estudiantes inscritos en TSU | DT21: Estudiantes | DU21: 199180
DR22: Número de estudiantes inscritos en Licenciatura | DS22: Número de estudiantes inscritos en Licenciatura | DT22: Estudiantes | DU22: 87053
B23: NOMBRE DEL INDICADOR (6.1) | C23: FÓRMULA | D23: UNIDAD DE MEDIDA | E23: META NACIONAL 2017 PIDE 2013-2018 | J23: CONTEXTO ACTUAL Y A FUTURO DEL INDICADOR (6.2) | V23: Total alcanzado (Se reporta en el tercer cuatrimestre) (6.3) | DR23: Tasa de egreso por cohorte generacional de TSU | DS23: (Número de estudiantes de TSU por cohorte que egresan/ Total de estudiantes de TSU de la cohorte)*100 | DT23: Estudiantes | DU23: 66
J24: 2016 | P24: 2017 | DR24: Tasa de egreso por cohorte generacional de Licenciatura | DS24: (Número de estudiantes de Licenciatura por cohorte que egresan/ Total de estudiantes de Licenciatura de la cohorte)*100 | DT24: Estudiantes | DU24: 73
J25: Número actual | M25: Porcentaje actual | P25: Número a lograr | S25: Porcentaje a lograr | V25: Número alcanzado | Y25: Porcentaje alcanzado | DR25: Retención escolar | DS25: (Número de estudiantes que finalizaron el ciclo de formación/Número de estudiantes que iniciaron el ciclo de formación)*100 | DT25: Estudiantes | DU25: 78
DR26: PREVENCIÓN Y DISMINUCIÓN DEL ABANDONO ESCOLAR
DR27: INDICADOR | DS27: FÓRMULA | DT27: Unidad de Medida | DU27: Media Nacional
DR28: Porcentaje de profesores de tiempo completo que imparten tutorías | DS28: (Número de profesores de tiempo completo que imparten tutorías/ número de profesores de tiempo completo)*100 | DT28: Profesores | DU28: 96
B29: OBJETIVO QUE ATIENDE EL PROCESO E IMPACTO (7) | D29: 1.- Elevar y mantener la calidad de la educación en todos los programas que se imparten, incluyendo el conjunto de actividades que realizan las instituciones qe conforman el subsistema, manteniendo el liderazgo de la calidad educativa bajo los estándares nacionales e internacionales. | DR29: Porcentaje de estudiantes de nuevo ingreso que reciben programas de inducción | DS29: (Número de estudiantes de nuevo ingreso participantes en programas de inducción/número total de estudiantes de nuevo igreso)*100 | DT29: Estudiantes | DU29: 99
DR30: Programas de Tutorías | DS30: Número de programas de tutorías que tiene la institución | DT30: Programas de Tutorías | DU30: 109
B31: CALENDARIZACIÓN Y SEGUIMIENTO DE LAS PRINCIPALES ACTIVIDADES (8) | DR31: Atención Psicopedagógica | DS31: Número de programas de atención psicopedagógica que tiene la institución | DT31: Programas de Atención Psicopedagógica | DU31: 106
B32: ACTIVIDADES | D32: UNIDAD DE MEDIDA | E32: META ANUAL | G32: CALENDARIO 2017 CUATRIMESTRAL | S32: JUSTIFICACIÓN DE LAS DESVIACIONES POSITIVAS O NEGATIVAS (9) | Z32: ÁREA EJECUTORA (10) | DR32: Porcentaje de alumnos que participan en programa de tutorÍas | DS32: (Número de alumnos en programas de tutorías/ Total de alumnos)*100 | DT32: Estudiantes | DU32: 98
G33: 1 | K33: 2 | O33: 3
G34: PROG | I34: ALC | K34: PROG | M34: ALC | O34: PROG | Q34: ALC | DR34: TIPO DE PROCESO
G35: # | H35: % | I35: # | J35: % | K35: # | L35: % | M35: # | N35: % | O35: # | P35: % | Q35: # | R35: % | DR35: Eficiencia
B36: Elaborar diagnóstico de profesores para elevar el perfil deseable PRODEP | D36: Diagnóstico (#) | E36: 1 | I36: 0 | J36: 0 | M36: 0 | N36: 0 | O36: 1 | P36: 100 | Q36: 1 | R36: 100 | S36: El proceso de diagnóstico se realizó al revisar los perfiles con miras a la obtención del reconocimiento de nuevos profesores y el resultado fue que se renovaron 5 y 5 nuevos reconocimientos y se realizaron reuniones con 20 profesores. | Z36: DIDET
B37: Organizar reuniones de Capacitación para cumplimiento de requisitos de Perfil Deseable PRODEP | D37: Reuniones (#) | E37: 3 | I37: 3 | J37: 100 | O37: 3 | P37: 100 | S37: Se realizaron 3 reuniones: División Económico Administrativa, División Industrial y División de Tecnologías de Automatización e Información. | Z37: DIDET | AC37: Impreso | DR37: Pertinencia
B38: Dar seguimiento a las observaciones en los Programas Educativos de los organismos acreditadores y/o evaluadores | D38: Seguimiento | E38: 1 | M38: 0 | N38: 0 | O38: 1 | P38: 100 | Q38: 1 | R38: 100 | S38: Se realizó el seguimiento a las observaciones, contándose con la información de la División Económico Administrativa y Ambiental. | Z38: Dirección de Planeación y Evaluación | DR38: Vinculación
DR39: Equidad de Género
B41: DESCRIPCIÓN DEL ALCANCE DEL INDICADOR Y EFECTO SOCIOECONOMICO (11)
B44: M. en C. José Carlos Arredondo Velázquez | Q44: M. en A. Macario Valdez Reséndiz
B45: Rector | Q45: Encargado de la División de Innovación y Desarrollo Tecnológico
B50: PROGRAMA OPERATIVO ANUAL 2017
B52: FORMATO 01 "DESARROLLO DE PROCESOS"
B54: UNIVERSIDAD: TECNOLÓGICA DE QUERÉTARO
B56: DENOMINACIÓN DEL PROCESO: (1) ACADÉMICO | Q56: NUM. DE PROCESO (2) | Y56: TIPO DE PROCESO (3)
Q58: 1 | Y58: Pertinencia
B60: ÁREA RESPONSABLE( 4 )
B62: Secretaría Académica
B63: Líneas estratégicas del PIDE del SUT o SUP 2013-2018 al que se da atención. ( 5 )
B64: Fortalecimiento de la Pertinencia de la Educación Superior para responder a los requerimientos del país
B65: INDICADORES ( 6 )
B66: NOMBRE DEL INDICADOR (6.1) | C66: FÓRMULA | D66: UNIDAD DE MEDIDA | E66: META NACIONAL 2017 PIDE 2013-2018 | J66: CONTEXTO ACTUAL Y A FUTURO DEL INDICADOR (6.2) | V66: Total alcanzado (Se reporta en el tercer cuatrimestre) (6.3)
B67: Número de estudios de trayectoria y de egresados llevados a cabo en el Año | C67: =(IF(B67="Número de estudios de trayectoria y de egresados llevados a cabo en el Año",DS16,IF(B67="Porcentaje de programas educativos con Análisis Situacional del Trabajo (AST)",DS17,IF(B67="Número de estudios de factibilidad elaborados",DS18)))) -> Número de estudios de trayectoria y de egresados llevados a cabo en el año | D67: =(IF(B67="Número de estudios de trayectoria y de egresados llevados a cabo en el Año",DT16,IF(B67="Porcentaje de programas educativos con Análisis Situacional del Trabajo (AST)",DT17,IF(B67="Número de estudios de factibilidad elaborados",DT18)))) -> Estudios | E67: =(IF(B67="Número de estudios de trayectoria y de egresados llevados a cabo en el Año",DU16,IF(B67="Porcentaje de programas educativos con Análisis Situacional del Trabajo (AST)",DU17,IF(B67="Número de estudios de factibilidad elaborados",DU18)))) -> 447 | J67: 2016 | P67: 2017
J68: Número actual | M68: Porcentaje actual | P68: Número a lograr | S68: Porcentaje a lograr | V68: Número alcanzado | Y68: Porcentaje alcanzado
J69: 5 | M69: =(5/5)*100 -> 100 | P69: 5 | S69: =(5/5)*100 -> 100 | V69: 5 | Y69: 100 | AB69: Pendiente los de trayectoria
B70: NOMBRE DEL INDICADOR (6.1) | C70: FÓRMULA | D70: UNIDAD DE MEDIDA | E70: META NACIONAL 2017 PIDE 2013-2018 | J70: CONTEXTO ACTUAL Y A FUTURO DEL INDICADOR (6.2) | V70: Total alcanzado (Se reporta en el tercer cuatrimestre) (6.3)
B71: Porcentaje de programas educativos con Análisis Situacional del Trabajo (AST) | C71: =(IF(B71="Número de estudios de trayectoria y de egresados llevados a cabo en el Año",DS16,IF(B71="Porcentaje de programas educativos con Análisis Situacional del Trabajo (AST)",DS17,IF(B71="Número de estudios de factibilidad elaborados",DS18)))) -> (Programas educativos en la institución con AST vigentes/ total de programas educativos en la institución)*100 | D71: =(IF(B71="Número de estudios de trayectoria y de egresados llevados a cabo en el Año",DT16,IF(B71="Porcentaje de programas educativos con Análisis Situacional del Trabajo (AST)",DT17,IF(B71="Número de estudios de factibilidad elaborados",DT18)))) -> Análisis | E71: =(IF(B71="Número de estudios de trayectoria y de egresados llevados a cabo en el Año",DU16,IF(B71="Porcentaje de programas educativos con Análisis Situacional del Trabajo (AST)",DU17,IF(B71="Número de estudios de factibilidad elaborados",DU18)))) -> 96 | J71: 2016 | P71: 2017 | AC71: IMPRESO
J72: Número actual | M72: Porcentaje actual | P72: Número a lograr | S72: Porcentaje a lograr | V72: Número alcanzado | Y72: Porcentaje alcanzado
J73: 23 | M73: =(23/23)*100 -> 100 | P73: 23 | S73: =(23/23)*100 -> 100 | V73: 7 | Y73: =(7/23)*100 -> 30.43478261
B74: OBJETIVO QUE ATIENDE EL PROCESO E IMPACTO (7) | D74: 1.- Brindar servicios de Educación Superior Tecnológica de calidad a través de los planes y programas de estudios actualizados y pertinentes al sector laboral, como un medio estratégico para acrecentar el capital humano y contribuir al aumento de la competitividad del país.
B75: CALENDARIZACIÓN Y SEGUIMIENTO DE LAS PRINCIPALES ACTIVIDADES (8)
B76: ACTIVIDADES | D76: UNIDAD DE MEDIDA | E76: META ANUAL | G76: CALENDARIO 2017 CUATRIMESTRAL | S76: JUSTIFICACIÓN DE LAS DESVIACIONES POSITIVAS O NEGATIVAS (9) | Z76: ÁREA EJECUTORA (10)
G77: 1 | K77: 2 | O77: 3
G78: PROG | I78: ALC | K78: PROG | M78: ALC | O78: PROG | Q78: ALC
G79: # | H79: % | I79: # | J79: % | K79: # | L79: % | M79: # | N79: % | O79: # | P79: % | Q79: # | R79: %
B80: Realizar reuniones del Consejo de Vinculación y Pertinencia | D80: Reuniones (#) | E80: 3 | G80: 1 | H80: 33.3 | I80: 1 | J80: 33.3 | K80: 1 | L80: 33.3 | M80: 0 | N80: 0 | O80: 1 | P80: 33.4 | Q80: 0 | R80: 0 | S80: En el tercer cuatrimestre no se realizó reunión del Consejo de Vinculación y Pertinencia. | Z80: Secretatía de Vinculación
B81: Implementar programa cuatrimestre cero para aspirantes a ingresar a la institución | D81: Programa (#) | E81: 1 | I81: 0 | J81: 0 | M81: 0 | N81: 0 | O81: 1 | P81: 100 | Q81: 1 | R81: 100 | S81: Se implementó el programa cuatrimestre cero que contó con la participación de 145 alumnos inscritos correspondiente a las cuatro divisiones. | Z81: Secretaría Académica
B82: Registrar programa de servicio social para aplicación de encuestas dirigidas a egresados | D82: Programa (#) | E82: 1 | I82: 1 | J82: 100 | K82: 1 | L82: 100 | M82: 0 | N82: 0 | Q82: 0 | R82: 0 | S82: Se aperturó el programa de servicio social denominado "seguimiento de egresados" con número de registro 2731 y con capacidad para 50 estudiantes que estarán apoyando en la aplicación de encuestas. | Z82: Departamento de Desempeño de Egresados
B83: Medir a través de una encuesta el grado de satisfacción de empleadores con el desempeño de egresados | D83: Encuesta (%) | E83: 80 | M83: =(188/240)*100 -> 78.33333333 | N83: =(M83*P83)/O83 -> 97.91666667 | O83: 80 | P83: 100 | Q83: =(63/71)*100 -> 88.73239437 | R83: =(Q83*P83)/O83 -> 110.915493 | S83: Se contó con 71 empleadores encuestados | Z83: Departamento de Desempeño de Egresados
B84: Medir a través de una encuesta el grado de satisfacción de egresados con la formación recibida | D84: Encuesta (%) | E84: 88 | I84: =(1282/1438)*100 -> 89.15159944 | J84: =(I84*P84)/O84 -> 101.3086357 | M84: =(668/723)*100 -> 92.39280775 | N84: =(M84*P84)/O84 -> 104.991827 | O84: 88 | P84: 100 | Q84: =(264/297)*100 -> 88.88888889 | R84: =(Q84*P83)/O83 -> 111.1111111 | S84: Se reportan los resultados de la 12ava generación de Ingeniería en virtud de que de la 34ava generación de TSU Intensivo aun no se cuenta con información. | Z84: Departamento de Desempeño de Egresados
B86: DESCRIPCIÓN DEL ALCANCE DEL INDICADOR Y EFECTO SOCIOECONOMICO (11)
B89: M. en C. José Carlos Arredondo Velázquez | Q89: M. A. Carlos Ignacio Luhrs Eijkelboom
B90: Rector | Q90: Secretario Académico
B95: PROGRAMA OPERATIVO ANUAL 2017
B96: FORMATO 01 "DESARROLLO DE PROCESOS"
B98: UNIVERSIDAD: TECNOLÓGICA DE QUERÉTARO
B100: DENOMINACIÓN DEL PROCESO: (1) ACADÉMICO | Q100: NUM. DE PRCESO (2) | Y100: TIPO DE PROCESO (3)
Q102: 1 | Y102: Eficacia
B104: ÁREA RESPONSABLE ( 4 )
B106: Secretaría Académica
B107: Líneas estratégicas del PIDE del SUT o SUP 2013-2018 al que se da atención. ( 5 )
B108: Aumento con Eficiencia de la Cobertura en Distintos Contextos
B109: INDICADORES ( 6 )
B110: NOMBRE DEL INDICADOR (6.1) | C110: FÓRMULA | D110: UNIDAD DE MEDIDA | E110: META NACIONAL 2017 PIDE 2013-2018 | J110: CONTEXTO ACTUAL Y A FUTURO DEL INDICADOR (6.2) | V110: Total alcanzado (Se reporta en el tercer cuatrimestre) (6.3)
B111: Número de estudiantes inscritos en TSU | C111: =(IF(B111="Número de estudiantes inscritos en TSU",DS21,IF(B111="Número de estudiantes inscritos en Licenciatura",DS22,IF(B111="Tasa de egreso por cohorte generacional de TSU",DS23,IF(B111="Tasa de egreso por cohorte generacional de Licenciatura",DS24,IF(B111="Retención escolar",DS25)))))) -> Número de estudiantes inscritos en TSU | D111: =(IF(B111="Número de estudiantes inscritos en TSU",DT21,IF(B111="Número de estudiantes inscritos en Licenciatura",DT22,IF(B111="Tasa de egreso por cohorte generacional de TSU",DT23,IF(B111="Tasa de egreso por cohorte generacional de Licenciatura",DT24,IF(B111="Retención escolar",DT25)))))) -> Estudiantes | E111: =(IF(B111="Número de estudiantes inscritos en TSU",DU21,IF(B111="Número de estudiantes inscritos en Licenciatura",DU22,IF(B111="Tasa de egreso por cohorte generacional de TSU",DU23,IF(B111="Tasa de egreso por cohorte generacional de Licenciatura",DU24,IF(B111="Retención escolar",DU25)))))) -> 199180 | J111: 2016 | P111: 2017
J112: Número actual | M112: Porcentaje actual | P112: Número a lograr | S112: Porcentaje a lograr | V112: Número alcanzado | Y112: Porcentaje alcanzado
J113: 3558 | M113: =(3558/5807)*100 -> 61.27087997 | P113: 4224 | S113: =(4224/6356)*100 -> 66.45689113 | V113: 3797 | Y113: =(3797/6456)*100 -> 58.81350682
B115: NOMBRE DEL INDICADOR (6.1) | C115: FÓRMULA | D115: UNIDAD DE MEDIDA | E115: META NACIONAL 2017 PIDE 2013-2018 | J115: CONTEXTO ACTUAL Y A FUTURO DEL INDICADOR (6.2) | V115: Total alcanzado (Se reporta en el tercer cuatrimestre) (6.3)
B116: Número de estudiantes inscritos en Licenciatura | C116: =(IF(B116="Número de estudiantes inscritos en TSU",DS21,IF(B116="Número de estudiantes inscritos en Licenciatura",DS22,IF(B116="Tasa de egreso por cohorte generacional de TSU",DS23,IF(B116="Tasa de egreso por cohorte generacional de Licenciatura",DS24,IF(B116="Retención escolar",DS25)))))) -> Número de estudiantes inscritos en Licenciatura | D116: =(IF(B116="Número de estudiantes inscritos en TSU",DT21,IF(B116="Número de estudiantes inscritos en Licenciatura",DT22,IF(B116="Tasa de egreso por cohorte generacional de TSU",DT23,IF(B116="Tasa de egreso por cohorte generacional de Licenciatura",DT24,IF(B116="Retención escolar",DT25)))))) -> Estudiantes | E116: =(IF(B116="Número de estudiantes inscritos en TSU",DU21,IF(B116="Número de estudiantes inscritos en Licenciatura",DU22,IF(B116="Tasa de egreso por cohorte generacional de TSU",DU23,IF(B116="Tasa de egreso por cohorte generacional de Licenciatura",DU24,IF(B116="Retención escolar",DU25)))))) -> 87053 | J116: 2016 | P116: 2017
J117: Número actual | M117: Porcentaje actual | P117: Número a lograr | S117: Porcentaje a lograr | V117: Número alcanzado | Y117: Porcentaje alcanzado
J118: 2249 | M118: =(2249/5807)*100 -> 38.72912003 | P118: 2132 | S118: =(2132/6356)*100 -> 33.54310887 | V118: 2659 | Y118: =(2659/6456)*100 -> 41.18649318
B120: OBJETIVO QUE ATIENDE EL PROCESO E IMPACTO (7) | D120: 1.- Asegurar una mayor participación de las Universidades Tecnológicas en el esfuerzo de cobertura en educación superior, atendiendo criterios de inclusión, equidad educativa y calidad, realizando un esfuerzo para la utilización óptima de la infraestructura física y humana disponible.
B121: CALENDARIZACIÓN Y SEGUIMIENTO DE LAS PRINCIPALES ACTIVIDADES (8)
B122: ACTIVIDADES | D122: UNIDAD DE MEDIDA | E122: META ANUAL | G122: CALENDARIO 2017 CUATRIMESTRAL | S122: JUSTIFICACIÓN DE LAS DESVIACIONES POSITIVAS O NEGATIVAS (9) | Z122: ÁREA EJECUTORA (10)
G123: 1 | K123: 2 | O123: 3
G124: PROG | I124: ALC | K124: PROG | M124: ALC | O124: PROG | Q124: ALC | AC124: IMPRESO
G125: # | H125: % | I125: # | J125: % | K125: # | L125: % | M125: # | N125: % | O125: # | P125: % | Q125: # | R125: %
B126: Elaborar programa de Captación de alumnos | D126: Programa (#) | E126: 1 | I126: 0 | J126: 0 | M126: 0 | N126: 0 | O126: 1 | P126: 100 | Q126: 1 | R126: 100 | S126: Se cuenta con el programa de Captación de alumnos 2017-2018 que cuenta con 9 actividades entre las que se encuentra Foro de orientación vocacional, ruta de orientación profesional Programa de Bachillerato Universitario y Talentos | Z126: Departamento de Vinculación Estudiantil
B127: Implementar estrategias para el programa de Captación de alumnos | D127: Estrategias (#) | E127: 3 | I127: 0 | J127: 0 | M127: 0 | N127: 0 | O127: 3 | P127: 100 | Q127: 9 | R127: =(Q127*P127)/O127 -> 300 | S127: Se implementaron 9 estrategias para el programa de captación de alumnos 2017-2018. | Z127: Departamento de Vinculación Estudiantil
B128: Promocionar la oferta educativa de la UTEQ en el nivel medio superior, ferias, eventos | D128: Promoción | E128: 1 | I128: 0 | J128: 0 | M128: 0 | N128: 0 | O128: 1 | P128: 100 | Q128: 1 | R128: 100 | S128: Se participó en las Ferias de los Cecyte Querétaro, Guananjuato, COBAQ, Conalep, DGETI (CBtis 118 y Cetis ) y algunos privados. | Z128: Departamento de Vinculación Estudiantil
B131: DESCRIPCIÓN DEL ALCANCE DEL INDICADOR Y EFECTO SOCIOECONOMICO (11)
B135: M. en C. José Carlos Arredondo Velázquez | Q135: M. A. Carlos Ignacio Luhrs Eijkelboom
B136: Rector | Q136: Secretario Académico
B141: PROGRAMA OPERATIVO ANUAL 2017
B143: FORMATO 01 "DESARROLLO DE PROCESOS"
B145: UNIVERSIDAD: TECNOLÓGICA DE QUERÉTARO
B147: DENOMINACIÓN DEL PROCESO: (1) ACADÉMICO | Q147: NUM. DE PROCESO (2) | Y147: TIPO DE PROCESO (3)
Q149: 1 | Y149: Eficacia
B151: ÁREA RESPONSABLE ( 4 )
B153: Secretaría Académica
B154: Líneas estratégicas del PIDE del SUT o SUP 2013-2018 al que se da atención. ( 5 )
B155: Prevención y Disminución del Abandono Escolar en la Educación Superior
B156: INDICADORES ( 6 )
B157: NOMBRE DEL INDICADOR (6.1) | C157: FÓRMULA | D157: UNIDAD DE MEDIDA | E157: META NACIONAL 2017 PIDE 2013-2018 | J157: CONTEXTO ACTUAL Y A FUTURO DEL INDICADOR (6.2) | V157: Total alcanzado (Se reporta en el tercer cuatrimestre) (6.3)
B158: Porcentaje de profesores de tiempo completo que imparten tutorías | C158: =(IF(B158="Porcentaje de profesores de tiempo completo que imparten tutorías",DS28,IF(B158="Porcentaje de estudiantes de nuevo ingreso que reciben programas de inducción",DS29,IF(B158="Programas de Tutorías",DS30,IF(B158="Atención Psicopedagógica",DS31,IF(B158="Porcentaje de alumnos que participan en programa de tutorÍas",DS32)))))) -> (Número de profesores de tiempo completo que imparten tutorías/ número de profesores de tiempo completo)*100 | D158: =(IF(B158="Porcentaje de profesores de tiempo completo que imparten tutorías",DT28,IF(B158="Porcentaje de estudiantes de nuevo ingreso que reciben programas de inducción",DT29,IF(B158="Programas de Tutorías",DT30,IF(B158="Atención Psicopedagógica",DT31,IF(B158="Porcentaje de alumnos que participan en programa de tutorÍas",DT32)))))) -> Profesores | E158: =(IF(B158="Porcentaje de profesores de tiempo completo que imparten tutorías",DU28,IF(B158="Porcentaje de estudiantes de nuevo ingreso que reciben programas de inducción",DU29,IF(B158="Programas de Tutorías",DU30,IF(B158="Atención Psicopedagógica",DU31,IF(B158="Porcentaje de alumnos que participan en programa de tutorÍas",DU32)))))) -> 96 | J158: 2016 | P158: 2017
J159: Número actual | M159: Porcentaje actual | P159: Número a lograr | S159: Porcentaje a lograr | V159: Número alcanzado | Y159: Porcentaje alcanzado
J160: 105 | M160: =(105/105)*100 -> 100 | P160: 110 | S160: =(110/110)*100 -> 100 | V160: 108 | Y160: =(108/108)*100 -> 100
B162: NOMBRE DEL INDICADOR (6.1) | C162: FÓRMULA | D162: UNIDAD DE MEDIDA | E162: META NACIONAL 2017 PIDE 2013-2018 | J162: CONTEXTO ACTUAL Y A FUTURO DEL INDICADOR (6.2) | V162: Total alcanzado (Se reporta en el tercer cuatrimestre) (6.3)
J163: 2016 | P163: 2017
J164: Número actual | M164: Porcentaje actual | P164: Número a lograr | S164: Porcentaje a lograr | V164: Número alcanzado | Y164: Porcentaje alcanzado
B167: OBJETIVO QUE ATIENDE EL PROCESO E IMPACTO (7) | D167: 1.- Consolidar la permanencia y eficiencia terminal de los estudiantes de las Universidades Tecnológicas por medio de estratégias y acciones que permitan superar los estándares nacionales e internacionales en la materia.
B168: CALENDARIZACIÓN Y SEGUIMIENTO DE LAS PRINCIPALES ACTIVIDADES (8)
B169: ACTIVIDADES | D169: UNIDAD DE MEDIDA | E169: META ANUAL | G169: CALENDARIO 2017 CUATRIMESTRAL | S169: JUSTIFICACIÓN DE LAS DESVIACIONES POSITIVAS O NEGATIVAS (9) | Z169: ÁREA EJECUTORA (10)
G170: 1 | K170: 2 | O170: 3
G171: PROG | I171: ALC | K171: PROG | M171: ALC | O171: PROG | Q171: ALC
G172: # | H172: % | I172: # | J172: % | K172: # | L172: % | M172: # | N172: % | O172: # | P172: % | Q172: # | R172: %
B173: Aplicar evaluación a Profesores por parte de los alumnos en la Universidad Tecnológica de Querétaro en el período, para conocer su desempeño. Esta actividad se realiza al 100% cada cuatrimestre | D173: Evaluación | E173: 98 | G173: 98 | H173: 100 | I173: =(260/261)*100 -> 99.61685824 | J173: =(I173*H173)/G173 -> 101.6498553 | K173: 98 | L173: 100 | M173: =(257/262)*100 -> 98.09160305 | N173: =(M173*P173)/O173 -> 100.0934725 | O173: 98 | P173: 100 | Q173: =(259/264)*100 -> 98.10606061 | R173: =(Q173*P173)/O173 -> 100.1082251 | S173: Se realizan acciones de seguimiento académico con los profesores que no logran resultado satisfactorio, así como la actualización continua. Se evaluaron 264 docentes (151 hombres y 113 mujeres) De ellos, 259 fueron evaluados con desempeño satisfactorio (148 hombres y 111 mujeres). | Z173: Subdirección de Desarrollo Académico
B174: Realizar diagnóstico de aprovechamiento escolar de TSU en la UTEQ | D174: Diagnóstico (#) | E174: 1 | I174: 1 | J174: 100 | M174: 1 | N174: 100 | O174: 1 | P174: 100 | Q174: 1 | R174: 100 | S174: Se realizó diagnóstico de aprovechamiento escolar las materias Seguridad y Medio Ambiente, Dispositivos Analógicos, Expresión Oral y Escrita, Algebra Lineal , Cálculo Diferencial, Finanzas, Química Básica, Dispositivos Digitales, Contabilidad Básica, entre otras fueron las materias con mayor número de alumnos que presentaron exámen ordinario.Los datos que se reportan están sujetos a variaciones. Estas dependerán de los cambios en calificaciones por recursos de revisión, solicitudes de los directores, así como por el registro de datos de últimas asignaturas. Información al 9 de enero 2018. | Z174: Subdirección de Servicios Escolares | AC174: IMPRESO
B175: Realizar diagnóstico de aprovechamiento escolar de Ingeniería en la UTEQ | D175: Diagnóstico (#) | E175: 1 | I175: 1 | J175: 100 | M175: 1 | N175: 100 | O175: 1 | P175: 100 | Q175: 1 | R175: 100 | S175: Se realizó diagnóstico de aprovechamiento escolar las materias Instrumentación Virtual, Ingeniería Económica, Estrategias de Eficiencia Energética, Dispositivos Digitales Programables, Control Automático, Física y Química para Ingeniería, entre otras fueron las materias con mayor número de alumnos que presentarion exámen ordinario.Los datos están sujetos a variaciones. Estas dependerán de los cambios en calificaciones por recursos de revisión, solicitudes de los directores, así como por el registro de datos de últimas asignaturas. Información al 9 de enero 2018. | Z175: Subdirección de Servicios Escolares
B176: DESCRIPCIÓN DEL ALCANCE DEL INDICADOR Y EFECTO SOCIOECONOMICO (11)
B180: M. en C. José Carlos Arredondo Velázquez | Q180: M. A. Carlos Ignacio Luhrs Eijkelboom
B181: Rector | Q181: Secretario Académico

Sheet 2.-CEDULA-vinculación
B1: PROGRAMA OPERATIVO ANUAL 2017
B3: FORMATO 01 "DESARROLLO DE PROCESOS"
B5: UNIVERSIDAD: TECNOLÓGICA DE QUERÉTARO
B7: DENOMINACIÓN DEL PROCESO: (1) VINCULACIÓN | Q7: NUM. DE PROCESO (2) | Y7: TIPO DE PROCESO (3) | DL7: VINCULACIÓN, EMPLEABILIDAD Y EMPRENDEDURISMO | DN7: UNIDAD DE MEDIDA | DO7: MEDIA NACIONAL
DL8: Transferencia del modelo de incubación de la CGUTyP | DM8: Número de Modelos de incubación transferidos. | DN8: Transferencias | DO8: 95
Q9: 2 | Y9: Vinculación | DL9: Número de empresas generadas anualmente, derivadas de los proyectos incubados en la Universidad sin importar cuántos se hayan incubado en total | DM9: Número total de empresas generadas anualmente, sin importar cuántos proyectos se hayan incubado en total | DN9: Empresas | DO9: 1382
DL10: Número total de empleos generados anualmente por las empresas incubadas | DM10: Número total de empleos generados de las empresas resultantes de la incubación | DN10: Empleos | DO10: 4288
B11: ÁREA RESPONSABLE( 4 ) | DL11: Número de convenios firmados anualmente con el sector productivo | DM11: Número de convenios firmados anualmente con el sector productivo | DN11: Convenios | DO11: 10560
DL12: Número de Consejos de Vinculación instalados en la Institución | DM12: Número de Consejos de Vinculación en la Institución instalados | DN12: Consejos | DO12: 109
B13: Secretaría de Vinculación | DL13: Número de Entidades de Evaluación y Certificación | DM13: Número de Entidades de evaluación y certificación | DN13: Entidades | DO13: 85
B14: Líneas estratégicas del PIDE del SUT o SUP 2013-2018 al que se da atención. ( 5 ) | DL14: Número de certificados expedidos anualmente por la Entidad de Evaluación y Certificación (EEC) | DM14: Número de certificados expedidos anualmente por la Entidad de Evaluación y Certificación (EEC) | DN14: Certificados | DO14: 34000
B15: Democratizar la Productividad: Vinculación, Empleabilidad, Emprendurísmo y Sistema Nacional de Competencias Laborales. | DL15: Número de Centros de Certificación iCarnegie | DM15: Número de centros de Certificación iCarnegie | DN15: Centros | DO15: 52
B16: INDICADORES ( 6 ) | DL16: Número de certificados expedidos anualmente por el Centro de Certificación iCarnegie | DM16: Número de certificados expedidos anualmente por el Centro de Certificación iCarnegie | DN16: Certificados | DO16: 3858
B17: NOMBRE DEL INDICADOR (6.1) | C17: FÓRMULA | D17: UNIDAD DE MEDIDA | E17: META NACIONAL 2017 PIDE 2013-2018 | J17: CONTEXTO ACTUAL Y A FUTURO DEL INDICADOR (6.2) | V17: Total alcanzado (Se reporta en el tercer cuatrimestre) (6.3) | DL17: Número de Centros de Certificación National Instruments | DM17: Número de centros de Certificación National Instruments | DN17: Centros | DO17: 45
B18: Número de empresas generadas anualmente, derivadas de los proyectos incubados en la Universidad sin importar cuántos se hayan incubado en total | C18: =(IF(B18="Transferencia del modelo de incubación de la CGUTyP",DM8, IF(B18="Número de empresas generadas anualmente, derivadas de los proyectos incubados en la Universidad sin importar cuántos se hayan incubado en total",DM9, IF(B18="Número total de empleos generados anualmente por las empresas incubadas",DM10, IF(B18="Número de convenios firmados anualmente con el sector productivo ",DM11, IF(B18="Número de Consejos de Vinculación instalados en la Institución ",DM12, IF(B18="Número de Entidades de Evaluación y Certificación",DM13, IF(B18="Número de certificados expedidos anualmente por la Entidad de Evaluación y Certificación (EEC)",DM14,IF(B18="Número de Centros de Certificación iCarnegie",DM15, IF(B18="Número de certificados expedidos anualmente por el Centro de Certificación iCarnegie",DM16, IF(B18="Número de Centros de Certificación National Instruments",DM17, IF(B18="Número de certificados expedidos anualmente por el Centro de Certificación National Instruments",DM18, IF(B18="Porcentaje de egresados de TSU que optan por la continuidad de estudios",DM19, IF(B18="Porcentaje de egresados de TSU que obtienen empleo en 6 meses o menos",DM20, IF(B18="Porcentaje de egresados de TSU que optaron por la continuidad y que tienen empleo",DM21, IF(B18="Porcentaje de colocación, en 6 meses o menos, de los egresados de Ingeniería",DM22, IF(B18="Porcentaje de colocación de los egresados en su área de competencia",DM23))))))))))))))))) -> Número total de empresas generadas anualmente, sin importar cuántos proyectos se hayan incubado en total | D18: =(IF(B18="Transferencia del modelo de incubación de la CGUTyP",DN8, IF(B18="Número de empresas generadas anualmente, derivadas de los proyectos incubados en la Universidad sin importar cuántos se hayan incubado en total",DN9, IF(B18="Número total de empleos generados anualmente por las empresas incubadas",DN10, IF(B18="Número de convenios firmados anualmente con el sector productivo ",DN11, IF(B18="Número de Consejos de Vinculación instalados en la Institución ",DN12, IF(B18="Número de Entidades de Evaluación y Certificación",DN13, IF(B18="Número de certificados expedidos anualmente por la Entidad de Evaluación y Certificación (EEC)",DN14,IF(B18="Número de Centros de Certificación iCarnegie",DN15, IF(B18="Número de certificados expedidos anualmente por el Centro de Certificación iCarnegie",DN16, IF(B18="Número de Centros de Certificación National Instruments",DN17, IF(B18="Número de certificados expedidos anualmente por el Centro de Certificación National Instruments",DN18, IF(B18="Porcentaje de egresados de TSU que optan por la continuidad de estudios",DN19, IF(B18="Porcentaje de egresados de TSU que obtienen empleo en 6 meses o menos",DN20, IF(B18="Porcentaje de egresados de TSU que optaron por la continuidad y que tienen empleo",DN21, IF(B18="Porcentaje de colocación, en 6 meses o menos, de los egresados de Ingeniería",DN22, IF(B18="Porcentaje de colocación de los egresados en su área de competencia",DN23))))))))))))))))) -> Empresas | E18: =(IF(B18="Transferencia del modelo de incubación de la CGUTyP",DO8, IF(B18="Número de empresas generadas anualmente, derivadas de los proyectos incubados en la Universidad sin importar cuántos se hayan incubado en total",DO9, IF(B18="Número total de empleos generados anualmente por las empresas incubadas",DO10, IF(B18="Número de convenios firmados anualmente con el sector productivo ",DO11, IF(B18="Número de Consejos de Vinculación instalados en la Institución ",DO12, IF(B18="Número de Entidades de Evaluación y Certificación",DO13, IF(B18="Número de certificados expedidos anualmente por la Entidad de Evaluación y Certificación (EEC)",DO14,IF(B18="Número de Centros de Certificación iCarnegie",DO15, IF(B18="Número de certificados expedidos anualmente por el Centro de Certificación iCarnegie",DO16, IF(B18="Número de Centros de Certificación National Instruments",DO17, IF(B18="Número de certificados expedidos anualmente por el Centro de Certificación National Instruments",DO18, IF(B18="Porcentaje de egresados de TSU que optan por la continuidad de estudios",DO19, IF(B18="Porcentaje de egresados de TSU que obtienen empleo en 6 meses o menos",DO20, IF(B18="Porcentaje de egresados de TSU que optaron por la continuidad y que tienen empleo",DO21, IF(B18="Porcentaje de colocación, en 6 meses o menos, de los egresados de Ingeniería",DO22, IF(B18="Porcentaje de colocación de los egresados en su área de competencia",DO23))))))))))))))))) -> 1382 | J18: 2016 | P18: 2017 | DL18: Número de certificados expedidos anualmente por el Centro de Certificación National Instruments | DM18: Número de certificados expedidos anualmente por el Centro de Certificación National Instruments | DN18: Certificados | DO18: 3136
J19: Número actual | M19: Porcentaje actual | P19: Número a lograr | S19: Porcentaje a lograr | V19: Número alcanzado | Y19: Porcentaje alcanzado | DL19: Porcentaje de egresados de TSU que optan por la continuidad de estudios | DM19: (Número de egresados de TSU que optan por la continuidad de estudios/número de egresados de TSU en el año t)*100 | DN19: Alumnos | DO19: 48
J20: 38 | P20: 38 | V20: 52 | AC20: IMPRESO | DL20: Porcentaje de egresados de TSU que obtienen empleo en 6 meses o menos | DM20: (Número de egresados de TSU que obtienen trabajo en 6 meses o menos/número de estudiantes egresados de TSU en el año t)*100 | DN20: Alumnos | DO20: 89
B21: NOMBRE DEL INDICADOR (6.1) | C21: FÓRMULA | D21: UNIDAD DE MEDIDA | E21: META NACIONAL 2017 PIDE 2013-2018 | J21: CONTEXTO ACTUAL Y A FUTURO DEL INDICADOR (6.2) | V21: Total alcanzado (Se reporta en el tercer cuatrimestre) (6.3) | DL21: Porcentaje de egresados de TSU que optaron por la continuidad y que tienen empleo | DM21: (Número de egresados de TSU que optaron por la continuidad y que tienen empleo/número de egresados de TSU) *100 | DN21: Alumnos | DO21: 25
B22: Porcentaje de colocación de los egresados en su área de competencia | C22: =(IF(B22="Transferencia del modelo de incubación de la CGUTyP",DM8, IF(B22="Número de empresas generadas anualmente, derivadas de los proyectos incubados en la Universidad sin importar cuántos se hayan incubado en total",DM9, IF(B22="Número total de empleos generados anualmente por las empresas incubadas",DM10, IF(B22="Número de convenios firmados anualmente con el sector productivo ",DM11, IF(B22="Número de Consejos de Vinculación instalados en la Institución ",DM12, IF(B22="Número de Entidades de Evaluación y Certificación",DM13, IF(B22="Número de certificados expedidos anualmente por la Entidad de Evaluación y Certificación (EEC)",DM14,IF(B22="Número de Centros de Certificación iCarnegie",DM15, IF(B22="Número de certificados expedidos anualmente por el Centro de Certificación iCarnegie",DM16, IF(B22="Número de Centros de Certificación National Instruments",DM17, IF(B22="Número de certificados expedidos anualmente por el Centro de Certificación National Instruments",DM18, IF(B22="Porcentaje de egresados de TSU que optan por la continuidad de estudios",DM19, IF(B22="Porcentaje de egresados de TSU que obtienen empleo en 6 meses o menos",DM20, IF(B22="Porcentaje de egresados de TSU que optaron por la continuidad y que tienen empleo",DM21, IF(B22="Porcentaje de colocación, en 6 meses o menos, de los egresados de Ingeniería",DM22, IF(B22="Porcentaje de colocación de los egresados en su área de competencia",DM23))))))))))))))))) -> (Número de egresados que tienen trabajo en su área de competencia / número de egresados que tienen empleo) *100 | D22: =(IF(B22="Transferencia del modelo de incubación de la CGUTyP",DN8, IF(B22="Número de empresas generadas anualmente, derivadas de los proyectos incubados en la Universidad sin importar cuántos se hayan incubado en total",DN9, IF(B22="Número total de empleos generados anualmente por las empresas incubadas",DN10, IF(B22="Número de convenios firmados anualmente con el sector productivo ",DN11, IF(B22="Número de Consejos de Vinculación instalados en la Institución ",DN12, IF(B22="Número de Entidades de Evaluación y Certificación",DN13, IF(B22="Número de certificados expedidos anualmente por la Entidad de Evaluación y Certificación (EEC)",DN14,IF(B22="Número de Centros de Certificación iCarnegie",DN15, IF(B22="Número de certificados expedidos anualmente por el Centro de Certificación iCarnegie",DN16, IF(B22="Número de Centros de Certificación National Instruments",DN17, IF(B22="Número de certificados expedidos anualmente por el Centro de Certificación National Instruments",DN18, IF(B22="Porcentaje de egresados de TSU que optan por la continuidad de estudios",DN19, IF(B22="Porcentaje de egresados de TSU que obtienen empleo en 6 meses o menos",DN20, IF(B22="Porcentaje de egresados de TSU que optaron por la continuidad y que tienen empleo",DN21, IF(B22="Porcentaje de colocación, en 6 meses o menos, de los egresados de Ingeniería",DN22, IF(B22="Porcentaje de colocación de los egresados en su área de competencia",DN23))))))))))))))))) -> Alumnos | E22: =(IF(B22="Transferencia del modelo de incubación de la CGUTyP",DO8, IF(B22="Número de empresas generadas anualmente, derivadas de los proyectos incubados en la Universidad sin importar cuántos se hayan incubado en total",DO9, IF(B22="Número total de empleos generados anualmente por las empresas incubadas",DO10, IF(B22="Número de convenios firmados anualmente con el sector productivo ",DO11, IF(B22="Número de Consejos de Vinculación instalados en la Institución ",DO12, IF(B22="Número de Entidades de Evaluación y Certificación",DO13, IF(B22="Número de certificados expedidos anualmente por la Entidad de Evaluación y Certificación (EEC)",DO14,IF(B22="Número de Centros de Certificación iCarnegie",DO15, IF(B22="Número de certificados expedidos anualmente por el Centro de Certificación iCarnegie",DO16, IF(B22="Número de Centros de Certificación National Instruments",DO17, IF(B22="Número de certificados expedidos anualmente por el Centro de Certificación National Instruments",DO18, IF(B22="Porcentaje de egresados de TSU que optan por la continuidad de estudios",DO19, IF(B22="Porcentaje de egresados de TSU que obtienen empleo en 6 meses o menos",DO20, IF(B22="Porcentaje de egresados de TSU que optaron por la continuidad y que tienen empleo",DO21, IF(B22="Porcentaje de colocación, en 6 meses o menos, de los egresados de Ingeniería",DO22, IF(B22="Porcentaje de colocación de los egresados en su área de competencia",DO23))))))))))))))))) -> 69 | J22: 2016 | P22: 2017 | DL22: Porcentaje de colocación, en 6 meses o menos, de los egresados de Ingeniería | DM22: (Número de egresados de Ingeniería que encontraron colocación en el sector productivo, en 6 meses o menos/número de egresados de Ingeniería)*100 | DN22: Alumnos | DO22: 86
J23: Número actual | M23: Porcentaje actual | P23: Número a lograr | S23: Porcentaje a lograr | V23: Número alcanzado | Y23: Porcentaje alcanzado | DL23: Porcentaje de colocación de los egresados en su área de competencia | DM23: (Número de egresados que tienen trabajo en su área de competencia / número de egresados que tienen empleo) *100 | DN23: Alumnos | DO23: 69
J24: 874 | M24: =(874/1240)*100 -> 70.48387097 | P24: 874 | S24: =(874/1240)*100 -> 70.48387097 | V24: 1452 | Y24: =(1452/1888)*100 -> 76.90677966 | DL24: NUEVOS MODELOS DE COOPERACIÓN PARA LA INTERNACIONALIZACIÓN DE LA EDUCACIÓN SUPERIORINDICADOR | DM24: FÓRMULA | DN24: UNIDAD DE MEDIDA | DO24: MEDIA NACIONAL
B25: OBJETIVO QUE ATIENDE EL PROCESO E IMPACTO (7) | D25: 1.- Profundizar la vinculación con los diversos sectores productivos, alentando la revisión permanente de la oferta educativa de manera tal que la pertinencia de los programas académicos asegure la empleabilidad de los egresados. 2. Perfeccionar las acciones de impulso al emprendedurismo, tanto a través de los contenidos de los programas académicos como mediante la consolidación de las incubadoras de empresas. 3. Establecer la infraestructura necesaria para el ofrecimiento de servicios de evaluación y certificación de competencias, de manera tal que se reconozcan las hablidades y conocimientos adquiridos en la experiencia laboral. | DL25: Número de estudiantes inscritos en programas de intercambio o movilidad en instituciones extranjeras | DM25: Número de estudiantes inscritos en programas de intercambio o movilidad en instituciones extranjeras | DN25: Estudiantes | DO25: 3441
DL26: Número de estudiantes extranjeros inscritos en programas de intercambio en nuestras instituciones | DM26: Número de estudiantes extranjeros inscritos en programas de intercambio en nuestras instituciones. | DN26: Estudiantes | DO26: 588
B27: CALENDARIZACIÓN Y SEGUIMIENTO DE LAS PRINCIPALES ACTIVIDADES (8) | DL27: Número de profesores extranjeros en programas de intercambio en instituciones nacionales | DM27: Número de profesores extranjeros en programas de intercambio en instituciones nacionales | DN27: Profesores | DO27: 270
B28: ACTIVIDADES | D28: UNIDAD DE MEDIDA | E28: META ANUAL | G28: CALENDARIO 2017 CUATRIMESTRAL | S28: JUSTIFICACIÓN DE LAS DESVIACIONES POSITIVAS O NEGATIVAS (9) | Z28: ÁREA EJECUTORA (10) | DL28: Número de profesores en programas de intercambio en instituciones internacionales | DM28: Número de profesores en programas de intercambio en instituciones internacionales | DN28: Profesores | DO28: 713
G29: 1 | K29: 2 | O29: 3 | DL29: Número de programas de lengua extranjera que se imparten en la institución | DM29: Número de programas de lengua extranjera que se imparten en la institución | DN29: Programas | DO29: 72
G30: PROG | I30: ALC | K30: PROG | M30: ALC | O30: PROG | Q30: ALC | DL30: Porcentaje de profesores que imparten una lengua extranjera y que están certificados | DM30: (Número de profesores que imparte una lengua extranjera y que están certificados/ número de profesores que imparte una lengua extranjera)*100 | DN30: Profesores | DO30: 79
G31: # | H31: % | I31: # | J31: % | K31: # | L31: % | M31: # | N31: % | O31: # | P31: % | Q31: # | R31: % | DL31: Número de convenios firmados con Universidades extranjeras para la movilidad estudiantil | DM31: Número de convenios firmados con Universidades extranjeras para la movilidad estudiantil. | DN31: Convenios | DO31: 506
B32: Análisis de los ingresos por servicios de Vinculación en el año. Esta actividad se realiza al 100% cada cuatrimestre. | D32: Análisis (#) | E32: 1 | G32: 1 | H32: 100 | I32: 1 | J32: 100 | K32: 1 | L32: 100 | M32: 1 | N32: 100 | O32: 1 | P32: 100 | Q32: 1 | R32: 100 | S32: El análisis se realiza a través del Reporte Financiero de Ingresos por Servicios de Vinculación | Z32: Secretaría de Vinculación | DL32: Participación de la institución como U-BIS | DM32: Participación de la institución como U-BIS NOTA: Poner sí o no únicamente | DN32: Certificado | DO32: 18
B33: Aplicación de encuesta a los clientes que calificaron como satisfactorios los Servicios Tecnológicos y de Educación Contínua que les brindó la Universidad Tecnológica de Querétaro. Esta Actividad se realiza al 100% cada cuatrimestre. | D33: Encuesta | E33: 98 | G33: 98 | H33: 100 | I33: =((4+90+35)/(4+90+37))*100 -> 98.47328244 | J33: =(I33*H33)/G33 -> 100.4829413 | K33: 98 | L33: 100 | M33: =((11+74+33)/(11+74+35))*100 -> 98.33333333 | N33: =(M33*L33)/K33 -> 100.3401361 | O33: 98 | P33: 100 | Q33: =((6+106+34)/(6+106+36))*100 -> 98.64864865 | R33: =(Q33*P33)/O33 -> 100.6618864 | S33: Se realizaron 6 servicios de Educación Continua, 106 Servicios Tecnológicos. En cuanto a los cursos de idiomas se realizaron 36 servicios siendo 34 satisfactorios.La satisfacción de los cursos de idiomas se vio afectada por la falta de espacios adecuados para la impartición de los cursos de idiomas. Se contó con 36 grupos. | Z33: Secretaría de Vinculación | DL33: PROMOCIÓN Y DIFUSIÓN DEL ARTE Y LA CULTURA
B34: Colocar egresados en un empleo a través de la bolsa de trabajo | D34: Egresados Contratados (#) | E34: 150 | I34: 54 | J34: =(I34*P34)/O34 -> 36 | M34: 64 | N34: =(M34*P34)/O34 -> 42.66666667 | O34: 150 | P34: 100 | Q34: 94 | R34: =(Q34*P34)/O34 -> 62.66666667 | S34: Se están atendiendo las vacantes de las empresas que se publican en la página web de la UTEQ y a través de facebook, se participan en los grupos de intercambio de cartera de AERI, SEE, Employer. En el cuatrimestre se logró la contratación de 64 egresados, teniendo un acumulado de 94 egresados colocados a través de la bolsa de trabajo, se cuenta con un acumulado enero- diciembre de 212 | Z34: Departamento de Desempeño de Egresados | DL34: Presentaciones artísticas y culturales | DM34: Número de presentaciones anuales de danza, múscia, teatro, festivales, entre otros | DN34: Presentaciones | DO34: 2789
B35: DESCRIPCIÓN DEL ALCANCE DEL INDICADOR Y EFECTO SOCIOECONOMICO (11) | DL35: INDICADOR | DM35: FÓRMULA | DN35: 2016
DL36: Torneos deportivos | DM36: Número de torneos deportivos anuales internos y externos en los que participará la institución | DN36: Torneos | DO36: 1960
DL37: Participantes en torneos deportivos | DM37: Número de alumnos que participarán en los torneos internos y externos en los que participará la institución/ total de alumnos *100 | DN37: Alumnos | DO37: 69292
B38: M. en C. José Carlos Arredondo Velázquez | Q38: Lic. Luis Gerardo González López | DL38: TIPO DE PROCESO
B39: Rector | Q39: Secretario de Vinculación | DL39: Eficiencia
DL40: Eficacia
DL41: Pertinencia
B42: PROGRAMA OPERATIVO ANUAL 2017
B44: FORMATO 01 "DESARROLLO DE PROCESOS"
B46: UNIVERSIDAD: TECNOLÓGICA DE QUERÉTARO
B48: DENOMINACIÓN DEL PROCESO: (1) VINCULACIÓN | Q48: NUM. DE PROCESO (2) | Y48: TIPO DE PROCESO (3)
Q50: 2 | Y50: Vinculación
B52: ÁREA RESPONSABLE( 4 )
B54: Subdirección de Vinculación Académica
B55: Líneas estratégicas del PIDE del SUT o SUP 2013-2018 al que se da atención. ( 5 )
B56: Nuevos Modelos de Cooperación para la Internacionalización de la Educación Superior.
B57: INDICADORES ( 6 )
B58: NOMBRE DEL INDICADOR (6.1) | C58: FÓRMULA | D58: UNIDAD DE MEDIDA | E58: META NACIONAL 2017 PIDE 2013-2018 | J58: CONTEXTO ACTUAL Y A FUTURO DEL INDICADOR (6.2) | V58: Total alcanzado (Se reporta en el tercer cuatrimestre) (6.3)
B59: Número de estudiantes inscritos en programas de intercambio o movilidad en instituciones extranjeras | C59: =(IF(B59="Número de estudiantes inscritos en programas de intercambio o movilidad en instituciones extranjeras",DM25, IF(B59="Número de estudiantes extranjeros inscritos en programas de intercambio en nuestras instituciones",DM26, IF(B59="Número de profesores extranjeros en programas de intercambio en instituciones nacionales",DM27, IF(B59="Número de profesores en programas de intercambio en instituciones internacionales",DM28, IF(B59="Número de programas de lengua extranjera que se imparten en la institución",DM29, IF(B59="Porcentaje de profesores que imparten una lengua extranjera y que están certificados",DM30, IF(B59="Número de convenios firmados con Universidades extranjeras para la movilidad estudiantil",DM31,IF(B59="Participación de la institución como U-BIS",DM32))))))))) -> Número de estudiantes inscritos en programas de intercambio o movilidad en instituciones extranjeras | D59: =(IF(B59="Número de estudiantes inscritos en programas de intercambio o movilidad en instituciones extranjeras",DN25, IF(B59="Número de estudiantes extranjeros inscritos en programas de intercambio en nuestras instituciones",DN26, IF(B59="Número de profesores extranjeros en programas de intercambio en instituciones nacionales",DN27, IF(B59="Número de profesores en programas de intercambio en instituciones internacionales",DN28, IF(B59="Número de programas de lengua extranjera que se imparten en la institución",DN29, IF(B59="Porcentaje de profesores que imparten una lengua extranjera y que están certificados",DN30, IF(B59="Número de convenios firmados con Universidades extranjeras para la movilidad estudiantil",DN31,IF(B59="Participación de la institución como U-BIS",DN32))))))))) -> Estudiantes | E59: =(IF(B59="Número de estudiantes inscritos en programas de intercambio o movilidad en instituciones extranjeras",DO25, IF(B59="Número de estudiantes extranjeros inscritos en programas de intercambio en nuestras instituciones",DO26, IF(B59="Número de profesores extranjeros en programas de intercambio en instituciones nacionales",DO27, IF(B59="Número de profesores en programas de intercambio en instituciones internacionales",DO28, IF(B59="Número de programas de lengua extranjera que se imparten en la institución",DO29, IF(B59="Porcentaje de profesores que imparten una lengua extranjera y que están certificados",DO30, IF(B59="Número de convenios firmados con Universidades extranjeras para la movilidad estudiantil",DO31,IF(B59="Participación de la institución como U-BIS",DO32))))))))) -> 3441 | J59: 2016 | P59: 2017
J60: Número actual | M60: Porcentaje actual | P60: Número a lograr | S60: Porcentaje a lograr | V60: Número alcanzado | Y60: Porcentaje alcanzado
J61: 67 | P61: 38 | V61: 58
B62: NOMBRE DEL INDICADOR (6.1) | C62: FÓRMULA | D62: UNIDAD DE MEDIDA | E62: META NACIONAL 2017 PIDE 2013-2018 | J62: CONTEXTO ACTUAL Y A FUTURO DEL INDICADOR (6.2) | V62: Total alcanzado (Se reporta en el tercer cuatrimestre) (6.3)
J63: 2016 | P63: 2017
J64: Número actual | M64: Porcentaje actual | P64: Número a lograr | S64: Porcentaje a lograr | V64: Número alcanzado | Y64: Porcentaje alcanzado
B66: OBJETIVO QUE ATIENDE EL PROCESO E IMPACTO (7) | D66: 1.- Establecer vínculos y cooperación bilateral con Instituciones extranjeras, compartiendo experiencias y mejores prácticas en materia de internacionalización a efecto de promover la movilidad estudiantil y docente; y la creación de redes colaborativas en materia académica, formativa y de investigación.
B67: CALENDARIZACIÓN Y SEGUIMIENTO DE LAS PRINCIPALES ACTIVIDADES (8)
B68: ACTIVIDADES | D68: UNIDAD DE MEDIDA | E68: META ANUAL | G68: CALENDARIO 2017 CUATRIMESTRAL | S68: JUSTIFICACIÓN DE LAS DESVIACIONES POSITIVAS O NEGATIVAS (9) | Z68: ÁREA EJECUTORA (10)
G69: 1 | K69: 2 | O69: 3
G70: PROG | I70: ALC | K70: PROG | M70: ALC | O70: PROG | Q70: ALC
G71: # | H71: % | I71: # | J71: % | K71: # | L71: % | M71: # | N71: % | O71: # | P71: % | Q71: # | R71: %
B72: Participar en convocatorias de movilidad | D72: Convocatorias (#) | E72: 5 | I72: 3 | J72: =(I72*P72)/O72 -> 60 | M72: 3 | N72: =(M72*P72)/O72 -> 60 | O72: 5 | P72: 100 | S72: En este cuatrimestre no hubo convocatorias. | Z72: Departamento de Desempeño de Egresados
B73: Realizar reuniones de difusión de Convocatorias de movilidad a alumnos | D73: Reuniones (#) | E73: 2 | I73: 2 | J73: 100 | K73: 2 | L73: 100 | M73: 3 | N73: =(M73*L73)/K73 -> 150 | S73: Al no haber convocatoria, no hubo reuniones de difusión. | Z73: Departamento de Desempeño de Egresados
AC74: IMPRESO
AC77: IMPRESO
B80: DESCRIPCIÓN DEL ALCANCE DEL INDICADOR Y EFECTO SOCIOECONOMICO (11)
B83: M. en C. José Carlos Arredondo Velázquez | Q83: Lic. Miguel Ángel Aguilar Marmolejo
B84: Rector | Q84: Subdirector de Vinculación Académica
B89: PROGRAMA OPERATIVO ANUAL 2017
B91: FORMATO 01 "DESARROLLO DE PROCESOS"
B93: UNIVERSIDAD: TECNOLÓGICA DE QUERÉTARO
B95: DENOMINACIÓN DEL PROCESO: (1) VINCULACIÓN | Q95: NUM. DE PRCESO (2) | Y95: TIPO DE PROCESO (3)
Q97: 2 | Y97: Vinculación
B99: ÁREA RESPONSABLE ( 4 )
B101: Dirección de Difusión y Extensión Universitaria
B102: Líneas estratégicas del PIDE del SUT o SUP 2013-2018 al que se da atención. ( 5 )
B103: Promoción y Difusión del Arte y la Cultura como Recursos Formativos.
B104: INDICADORES ( 6 )
B105: NOMBRE DEL INDICADOR (6.1) | C105: FÓRMULA | D105: UNIDAD DE MEDIDA | E105: META NACIONAL 2017 PIDE 2013-2018 | J105: CONTEXTO ACTUAL Y A FUTURO DEL INDICADOR (6.2) | V105: Total alcanzado (Se reporta en el tercer cuatrimestre) (6.3)
B106: Presentaciones artísticas y culturales | C106: =(IF(B106="Presentaciones artísticas y culturales",DM34, IF(B106="Alumnos que participan en actividades culturales y artísticas",#REF!))) -> Número de presentaciones anuales de danza, múscia, teatro, festivales, entre otros | D106: =(IF(B106="Presentaciones artísticas y culturales",DN34, IF(B106="Alumnos que participan en actividades culturales y artísticas",#REF!))) -> Presentaciones | E106: =(IF(B106="Presentaciones artísticas y culturales",DO34, IF(B106="Alumnos que participan en actividades culturales y artísticas",#REF!))) -> 2789 | J106: 2016 | P106: 2017
J107: Número actual | M107: Porcentaje actual | P107: Número a lograr | S107: Porcentaje a lograr | V107: Número alcanzado | Y107: Porcentaje alcanzado
J108: 276 | P108: 170 | V108: 278
B109: NOMBRE DEL INDICADOR (6.1) | C109: FÓRMULA | D109: UNIDAD DE MEDIDA | E109: META NACIONAL 2017 PIDE 2013-2018 | J109: CONTEXTO ACTUAL Y A FUTURO DEL INDICADOR (6.2) | V109: Total alcanzado (Se reporta en el tercer cuatrimestre) (6.3)
B110: Alumnos que participan en actividades culturales y artísticas | C110: (Número de alumnos que participan en actividades culturales y artísticas/ total de alumnos)*100 | D110: Alumnos | E110: 70842 | J110: 2016 | P110: 2017
J111: Número actual | M111: Porcentaje actual | P111: Número a lograr | S111: Porcentaje a lograr | V111: Número alcanzado | Y111: Porcentaje alcanzado
J112: 536 | M112: =(536/5807)*100 -> 9.230239366 | P112: 550 | S112: =(550/6356)*100 -> 8.653241032 | V112: 1887 | Y112: =(1887/6456)*100 -> 29.22862454
B113: OBJETIVO QUE ATIENDE EL PROCESO E IMPACTO (7) | D113: 1.- Desarrollar en los estudiantes capacidades como la intuición, la emoción, el reconocimiento del talento o el virtuosismo por medio de actividades artísticas y culturales; como acciones formativas complementarias a los contenidos de la enseñanza formal.
B114: CALENDARIZACIÓN Y SEGUIMIENTO DE LAS PRINCIPALES ACTIVIDADES (8)
B115: ACTIVIDADES | D115: UNIDAD DE MEDIDA | E115: META ANUAL | G115: CALENDARIO 2017 CUATRIMESTRAL | S115: JUSTIFICACIÓN DE LAS DESVIACIONES POSITIVAS O NEGATIVAS (9) | Z115: ÁREA EJECUTORA (10)
G116: 1 | K116: 2 | O116: 3
G117: PROG | I117: ALC | K117: PROG | M117: ALC | O117: PROG | Q117: ALC
G118: # | H118: % | I118: # | J118: % | K118: # | L118: % | M118: # | N118: % | O118: # | P118: % | Q118: # | R118: %
B119: Implementar talleres de actividades artísticas y culturales. Esta actividad se realiza al 100% cada cuatrimestre | D119: Talleres (#) | E119: 12 | G119: 12 | H119: 100 | I119: 13 | J119: =(I119*H119)/G119 -> 108.3333333 | K119: 12 | L119: 100 | M119: 0 | N119: 0 | O119: 12 | P119: 100 | Q119: 0 | R119: 0 | S119: Se crearon provisionalmente los talleres de Declamación y Oratoria, para participar en el Encuentro Nacional Deportivo y Cultural de Universidades Tecnológicas. | Z119: Departamento de Actividades Culturales | AC119: IMPRESO
B123: DESCRIPCIÓN DEL ALCANCE DEL INDICADOR Y EFECTO SOCIOECONOMICO (11)
B127: M. en C. José Carlos Arredondo Velázquez | Q127: Lic. José Francisco Alcocer Aranda
B128: Rector | Q128: Director de Difusión y Extensión Universitaria
B133: PROGRAMA OPERATIVO ANUAL 2017
B135: FORMATO 01 "DESARROLLO DE PROCESOS"
B137: UNIVERSIDAD: TECNOLÓGICA DE QUERÉTARO
B139: DENOMINACIÓN DEL PROCESO: (1) VINCULACIÓN | Q139: NUM. DE PROCESO (2) | Y139: TIPO DE PROCESO (3)
Q141: 2 | Y141: Vinculación
B143: ÁREA RESPONSABLE ( 4 )
B145: Dirección de Difusión y Extensión Universitaría
B146: Líneas estratégicas del PIDE del SUT o SUP 2013-2018 al que se da atención. ( 5 )
B147: Fortalecimiento de la Práctica de Actividades Físicas y Deportivas.
B148: INDICADORES ( 6 )
B149: NOMBRE DEL INDICADOR (6.1) | C149: FÓRMULA | D149: UNIDAD DE MEDIDA | E149: META NACIONAL 2017 PIDE 2013-2018 | J149: CONTEXTO ACTUAL Y A FUTURO DEL INDICADOR (6.2) | V149: Total alcanzado (Se reporta en el tercer cuatrimestre) (6.3)
B150: Torneos deportivos | C150: =(IF(B150="Torneos deportivos",DM36, IF(B150="Participantes en torneos deportivos",DM37))) -> Número de torneos deportivos anuales internos y externos en los que participará la institución | D150: =(IF(B150="Torneos deportivos",DN36, IF(B150="Participantes en torneos deportivos",DN37))) -> Torneos | E150: =(IF(B150="Torneos deportivos",DO36, IF(B150="Participantes en torneos deportivos",DO37))) -> 1960 | J150: 2016 | P150: 2017
J151: Número actual | M151: Porcentaje actual | P151: Número a lograr | S151: Porcentaje a lograr | V151: Número alcanzado | Y151: Porcentaje alcanzado
J152: 67 | P152: 60 | V152: 120
B153: NOMBRE DEL INDICADOR (6.1) | C153: FÓRMULA | D153: UNIDAD DE MEDIDA | E153: META NACIONAL 2017 PIDE 2013-2018 | J153: CONTEXTO ACTUAL Y A FUTURO DEL INDICADOR (6.2) | V153: Total alcanzado (Se reporta en el tercer cuatrimestre) (6.3)
B154: Participantes en torneos deportivos | C154: =(IF(B154="Torneos deportivos",DM36, IF(B154="Participantes en torneos deportivos",DM37))) -> Número de alumnos que participarán en los torneos internos y externos en los que participará la institución/ total de alumnos *100 | D154: =(IF(B154="Torneos deportivos",DN36, IF(B154="Participantes en torneos deportivos",DN37))) -> Alumnos | E154: =(IF(B154="Torneos deportivos",DO36, IF(B154="Participantes en torneos deportivos",DO37))) -> 69292 | J154: 2016 | P154: 2017
J155: Número actual | M155: Porcentaje actual | P155: Número a lograr | S155: Porcentaje a lograr | V155: Número alcanzado | Y155: Porcentaje alcanzado
J156: 810 | M156: =(810/5807)*100 -> 13.94868262 | P156: 750 | S156: =(750/6356)*100 -> 11.79987413 | V156: 950 | Y156: =(950/6456)*100 -> 14.7149938
B157: OBJETIVO QUE ATIENDE EL PROCESO E IMPACTO (7) | D157: 1.- Complementar la formación profesional de los estudiantes a través de la práctica regular de actividades físicas y deportivas, formentando hábitos que propicien una vida sana; libre de sobrepeso y obesidad.
B158: CALENDARIZACIÓN Y SEGUIMIENTO DE LAS PRINCIPALES ACTIVIDADES (8)
B159: ACTIVIDADES | D159: UNIDAD DE MEDIDA | E159: META ANUAL | G159: CALENDARIO 2017 CUATRIMESTRAL | S159: JUSTIFICACIÓN DE LAS DESVIACIONES POSITIVAS O NEGATIVAS (9) | Z159: ÁREA EJECUTORA (10)
G160: 1 | K160: 2 | O160: 3
G161: PROG | I161: ALC | K161: PROG | M161: ALC | O161: PROG | Q161: ALC
G162: # | H162: % | I162: # | J162: % | K162: # | L162: % | M162: # | N162: % | O162: # | P162: % | Q162: # | R162: %
B163: Conformar equipos deportivos de la Universidad | D163: Equipos (#) | E163: 20 | I163: 22 | J163: =(I163*P163)/O163 -> 110 | M163: 22 | N163: =(M163*P163)/O163 -> 110 | O163: 20 | P163: 100 | Q163: 21 | R163: =(Q163*P163)/O163 -> 105 | S163: Se cuenta con 21 equipos deportivos siendo 10 equipos femeniles y 11 varoniles, entre las disciplinas que se encuentran son: atletismo, ajedrez, tae kwon do, basquetbol, futbol soccer, futbol siete, futbol rápido, voley ball, voley ball playero, tenis de mesa y karate do. | Z163: Departamento de Actividades Deportivas
B164: Promover el calendario de las actividades deportivas dentro de la Comunidad Universitaria | D164: Promoción | E164: 3 | G164: 1 | H164: 33.3 | I164: 1 | J164: 33.3 | K164: 1 | L164: 33.3 | M164: 1 | N164: 33.3 | O164: 1 | P164: 33.4 | Q164: 1 | R164: 33.4 | S164: Se publica el calendario en el lobby del auditorío para que los alumnos conozcan las actividades, así como en la página web. | Z164: Departamento de Actividades Deportivas | AC164: IMPRESO
B168: DESCRIPCIÓN DEL ALCANCE DEL INDICADOR Y EFECTO SOCIOECONOMICO (11)
B172: M. en C. José Carlos Arredondo Velázquez | Q172: Lic. José Francisco Alcocer Aranda
B173: Rector | Q173: Director de Difusión y Extensión Universitaria

Sheet 3.-CEDULA -gestión
B1: PROGRAMA OPERATIVO ANUAL 2017
B3: FORMATO 01 "DESARROLLO DE PROCESOS"
B5: UNIVERSIDAD: TECNOLÓGICA DE QUERÉTARO
FB6: GESTIÓN: APROVECHAMIENTO DE LAS TIC´S
B7: DENOMINACIÓN DEL PROCESO: (1) GESTIÓN | Q7: NUM. DE PROCESO (2) | Y7: TIPO DE PROCESO (3) | FB7: INDICADOR | FC7: FÓRMULA
FB8: Cobertura en red inalámbrica y conexión a internet | FC8: Porcentaje de cobertura en red inalámbrica y conexión a internet en la institución | FD8: Cobertura de red inalámbrica e internet | FE8: 95
Q9: 3 | Y9: Eficacia | FB9: Equipos de cómputo | FC9: Número de equipos de cómputo anuales necesarios para mantener actualizados los programas educativos (reportar los adquiridos durante el periodo) | FD9: equipos de cómputo | FE9: 44365
FB10: Software | FC10: Número de softwares anuales necesarios para mantener actualizados los programas educativos (reportar los adquiridos durante el periodo) | FD10: Software | FE10: 10968
B11: ÁREA RESPONSABLE( 4 ) | FB11: Bibliotecas virtuales | FC11: Suscripción a bibliotecas virtuales. NOTA: Poner sí o no únicamente | FD11: Suscripción | FE11: 107
FB12: Aulas inteligentes | FC12: Número de aulas inteligentes anuales establecida en la institución (reportar los adquiridos durante el periodo) | FD12: Aulas inteligentes | FE12: 1525
B13: Dirección de Tecnologías de Información y Comunicación | FB13: GESTIÓN: AMPLIACIÓN Y MEJORAMIENTO DE LA INFRAESTRUCTURA DE LA EDUCACIÓN SUPERIOR
B14: Líneas estratégicas del PIDE del SUT o SUP 2013-2018 al que se da atención. ( 5 ) | FB14: INDICADOR | FC14: FÓRMULA | FD14: 2016
B15: Aprovechamiento de las Tecnologías de la Información y la Comunicación en el Fortalecimiento de la Educación Superior | FB15: Porcentaje de utilización de la infraestructura | FC15: (Matrícula de la institución / capacidad instalada)*100 Nota: la capacidad instalada es el número de lugares con que cuenta la Universidad para dar atención a los alumnos. | FD15: Infraestructura utilizada | FE15: 105
B16: INDICADORES ( 6 ) | FB16: Edificios de docencia de dos niveles | FC16: Número de edificios de docencia de dos niveles, sin tomar en cuenta los ya existentes, necesarios para alojar el aumento de la matrícula Nota: el número de edificios de docencia de dos niveles tendrá que ser consistente con la proyección de crecimiento de matrícula de la universidad (reportar los construidos durante el periodo de análisis) | FD16: Edificios | FE16: 48
B17: NOMBRE DEL INDICADOR (6.1) | C17: FÓRMULA | D17: UNIDAD DE MEDIDA | E17: META NACIONAL 2017 PIDE 2013-2018 | J17: CONTEXTO ACTUAL Y A FUTURO DEL INDICADOR (6.2) | V17: Total alcanzado (Se reporta en el tercer cuatrimestre) (6.3) | FB17: Edificios de docencia de un nivel | FC17: Número de edificios de docencia de un nivel, sin tomar en cuenta los ya existentes, necesarios para alojar el aumento de la matrícula Nota: el número de edificios de docencia de un nivel tendrá que ser consistente con la proyección de crecimiento de matrícula de la universidad (reportar los construidos durante el periodo de análisis) | FD17: Edificios | FE17: 16
B18: Cobertura en red inalámbrica y conexión a internet | C18: =(IF(B18="Cobertura en red inalámbrica y conexión a internet",FC8, IF(B18="Equipos de cómputo",FC9,IF(B18="Software",FC10,IF(B18="Bibliotecas virtuales",FC11,IF(B18="Aulas inteligentes",FC12)))))) -> Porcentaje de cobertura en red inalámbrica y conexión a internet en la institución | D18: =(IF(B18="Cobertura en red inalámbrica y conexión a internet",FD8, IF(B18="Equipos de cómputo",FD9,IF(B18="Software",FD10,IF(B18="Bibliotecas virtuales",FD11,IF(B18="Aulas inteligentes",FD12)))))) -> Cobertura de red inalámbrica e internet | E18: =(IF(B18="Cobertura en red inalámbrica y conexión a internet",FE8, IF(B18="Equipos de cómputo",FE9,IF(B18="Software",FE10,IF(B18="Bibliotecas virtuales",FE11,IF(B18="Aulas inteligentes",FE12)))))) -> 95 | J18: 2016 | P18: 2017 | FB18: Edificios de laboratorios y talleres | FC18: Número de edificios de laboratorios y talleres, sin tomar en cuenta los ya existentes, necesarios para alojar el aumento de la matrícula Nota: el número de edificios de laboratorios y talleres tendrá que ser consistente con la proyección de crecimiento de matrícula de la universidad (reportar los construidos durante el periodo de análisis) | FD18: Edificios | FE18: 57
J19: Número actual | M19: Porcentaje actual | P19: Número a lograr | S19: Porcentaje a lograr | V19: Número alcanzado | Y19: Porcentaje alcanzado | FB19: Bibliotecas | FC19: Número de edificios de biblioteca, sin tomar en cuenta los ya existentes, necesarios debido al aumento de matrícula para ofertar un servicio educativo de calidad. Nota: el número de edificios de biblioteca tendrá que ser consistente con la proyección de crecimiento de matrícula de la universidad (reportar los construidos durante el periodo de análisis) | FD19: Edificios | FE19: 14
M20: 95 | S20: 95 | V20: 85 | FB20: Número de cafeterías | FC20: Número de edificios de cafetería, sin tomar en cuenta los ya existentes, necesarios debido al aumento de matrícula para ofertar un servicio educativo de calidad. Nota: el número de edificios de cafetería tendrá que ser consistente con la proyección de crecimiento de matrícula de la universidad (reportar los construidos durante el periodo de análisis) | FD20: Cafeterías | FE20: 16
B21: NOMBRE DEL INDICADOR (6.1) | C21: FÓRMULA | D21: UNIDAD DE MEDIDA | E21: META NACIONAL 2017 PIDE 2013-2018 | J21: CONTEXTO ACTUAL Y A FUTURO DEL INDICADOR (6.2) | V21: Total alcanzado (Se reporta en el tercer cuatrimestre) (6.3) | FB21: Gimnasios/auditorios | FC21: Número de edificios de gimnasio/auditorio, sin tomar en cuenta los ya existentes, necesarios debido al aumento de matrícula para ofertar un servicio educativo de calidad. Nota: el número de edificios de gimnasio/auditorio tendrá que ser consistente con la proyección de crecimiento de matrícula de la universidad (reportar los construidos durante el periodo de análisis) | FD21: Gimnasios/auditorios | FE21: 27
J22: 2016 | P22: 2017 | FB22: Edificios de rectoría | FC22: Número de edificios de rectoría, sin tomar en cuenta los existentes, necesarios por el aumento de la matrícula para dar servicio de calidad a los alumnos. Nota: el número de edificios de rectoría tendrá que ser consistente con la proyección de crecimiento de matrícula de la universidad | FD22: Edificios | FE22: 20
J23: Número actual | M23: Porcentaje actual | P23: Número a lograr | S23: Porcentaje a lograr | V23: Número alcanzado | Y23: Porcentaje alcanzado | FB23: Edificios de vinculación | FC23: Número de edificios de vinculación, sin tomar en cuenta los existentes, necesarios para ofertar un servicio de calidad. Nota: el número de edificios de vinculación tendrá que ser consistente con la proyección de crecimiento de matrícula de la universidad (reportar los construidos durante el periodo de análisis) | FD23: Edificios | FE23: 23
FB24: Edificios de almacén | FC24: Número de edificios de almacén, sin tomar en cuenta los ya existentes, necesarios debido al crecimiento de la infraestructura física de la Universidad. Nota: el número de edificios de almacén tendrá que ser consistente con la proyección de crecimiento de infraestructura física de la universidad (reportar los construidos durante el periodo de análisis) | FD24: Edificios | FE24: 25
B25: OBJETIVO QUE ATIENDE EL PROCESO E IMPACTO (7) | D25: 1.-Establecer un programa integral para el uso generalizado de las Tecnologías de la Información y la Comunicación de manera tal que se fortalezcan la calidad de la enseñanza, la formación de profesores y el aumento de la matrícula. | FB25: Canchas deportivas | FC25: Número de canchas deportivas sin tomar en cuenta las ya existentes, necesarias debido al aumento de matrícula para ofertar un servicio educativo de calidad. Nota: el número de canchas deportivas tendrá que ser consistente con la proyección de crecimiento de matrícula de la universidad (reportar los construidos durante el periodo de análisis) | FD25: Canchas | FE25: 53
B26: CALENDARIZACIÓN Y SEGUIMIENTO DE LAS PRINCIPALES ACTIVIDADES (8) | FB26: TIPO DE PROCESO
B27: ACTIVIDADES | D27: UNIDAD DE MEDIDA | E27: META ANUAL | G27: CALENDARIO 2017 CUATRIMESTRAL | S27: JUSTIFICACIÓN DE LAS DESVIACIONES POSITIVAS O NEGATIVAS (9) | Z27: ÁREA EJECUTORA (10) | FB27: Eficiencia
G28: 1 | K28: 2 | O28: 3 | FB28: Eficacia
G29: PROG | I29: ALC | K29: PROG | M29: ALC | O29: PROG | Q29: ALC | FB29: Pertinencia
G30: # | H30: % | I30: # | J30: % | K30: # | L30: % | M30: # | N30: % | O30: # | P30: % | Q30: # | R30: % | FB30: Vinculación
B31: Adquirir antenas WiFI para ampliar la cobertura | D31: Antenas (#) | E31: 4 | I31: 0 | J31: 0 | M31: 0 | N31: 0 | O31: 4 | P31: 100 | Q31: 4 | R31: 100 | S31: Se adquirieron 4 puntos de acceso, de los cuales se instalaron dos. Se encuentran pendientes de entrega dos por parte del proveedor. Se incrementó el área de cobertura debido a la entrega de la 2a etapa del edificio CIC 4.0 | Z31: Departamento de Telecomunicaciones y Soporte Técnico
B34: DESCRIPCIÓN DEL ALCANCE DEL INDICADOR Y EFECTO SOCIOECONOMICO (11)
B38: M. en C. José Carlos Arredondo Velázquez | Q38: M. en A. Armando Galo Vega Adame
B39: Rector | Q39: Director de la Dirección de Tecnologías de Información
B44: PROGRAMA OPERATIVO ANUAL 2017
B46: FORMATO 01 "DESARROLLO DE PROCESOS"
B48: UNIVERSIDAD: TECNOLÓGICA DE QUERÉTARO
B50: DENOMINACIÓN DEL PROCESO: (1) GESTIÓN | Q50: NUM. DE PROCESO (2) | Y50: TIPO DE PROCESO (3)
Q52: 3 | Y52: Eficacia
B54: ÁREA RESPONSABLE ( 4 )
B56: Dirección de Planeación y Evaluación
B57: Líneas estratégicas del PIDE del SUT o SUP 2013-2018 al que se da atención. ( 5 )
B58: Ampliación y Mejoramiento de la Infraestructura y el Equipamiento de la Educación Superior
B59: INDICADORES ( 6 )
B60: NOMBRE DEL INDICADOR (6.1) | C60: FÓRMULA | D60: UNIDAD DE MEDIDA | E60: META NACIONAL 2017 PIDE 2013-2018 | J60: CONTEXTO ACTUAL Y A FUTURO DEL INDICADOR (6.2) | V60: Total alcanzado (Se reporta en el tercer cuatrimestre) (6.3)
B61: Porcentaje de utilización de la infraestructura | C61: =(IF(B61="Porcentaje de utilización de la infraestructura",FC15, IF(B61="Edificios de docencia de dos niveles",FC16,IF(B61="Edificios de docencia de un nivel",FC17,IF(B61="Edificios de laboratorios y talleres",FC18,IF(B61="Bibliotecas",FC19,IF(B61="Número de cafeterías",FC20,IF(B61="Gimnasios/auditorios",FC21,IF(B61="Edificios de rectoría",FC22,IF(B61="Edificios de vinculación",FC23,IF(B61="Edificios de almacén",FC24,IF(B61="Canchas deportivas",FC25)))))))))))) -> (Matrícula de la institución / capacidad instalada)*100 Nota: la capacidad instalada es el número de lugares con que cuenta la Universidad para dar atención a los alumnos. | D61: =(IF(B61="Porcentaje de utilización de la infraestructura",FD15, IF(B61="Edificios de docencia de dos niveles",FD16,IF(B61="Edificios de docencia de un nivel",FD17,IF(B61="Edificios de laboratorios y talleres",FD18,IF(B61="Bibliotecas",FD19,IF(B61="Número de cafeterías",FD20,IF(B61="Gimnasios/auditorios",FD21,IF(B61="Edificios de rectoría",FD22,IF(B61="Edificios de vinculación",FD23,IF(B61="Edificios de almacén",FD24,IF(B61="Canchas deportivas",FD25)))))))))))) -> Infraestructura utilizada | E61: =(IF(B61="Porcentaje de utilización de la infraestructura",FE15, IF(B61="Edificios de docencia de dos niveles",FE16,IF(B61="Edificios de docencia de un nivel",FE17,IF(B61="Edificios de laboratorios y talleres",FE18,IF(B61="Bibliotecas",FE19,IF(B61="Número de cafeterías",FE20,IF(B61="Gimnasios/auditorios",FE21,IF(B61="Edificios de rectoría",FE22,IF(B61="Edificios de vinculación",FE23,IF(B61="Edificios de almacén",FE24,IF(B61="Canchas deportivas",FE25)))))))))))) -> 105 | J61: 2016 | P61: 2017
J62: Número actual | M62: Porcentaje actual | P62: Número a lograr | S62: Porcentaje a lograr | V62: Número alcanzado | Y62: Porcentaje alcanzado
J63: 100.39 | M63: =(16644/16579)*100 -> 100.3920622 | P63: 100 | S63: 100 | V63: =(6413+5358+6456)/(6200+5996+6118)*100 -> 99.52495359 | Y63: 99.52495359
B64: NOMBRE DEL INDICADOR (6.1) | C64: FÓRMULA | D64: UNIDAD DE MEDIDA | E64: META NACIONAL 2017 PIDE 2013-2018 | J64: CONTEXTO ACTUAL Y A FUTURO DEL INDICADOR (6.2) | V64: Total alcanzado (Se reporta en el tercer cuatrimestre) (6.3)
J65: 2016 | P65: 2017
J66: Número actual | M66: Porcentaje actual | P66: Número a lograr | S66: Porcentaje a lograr | V66: Número alcanzado | Y66: Porcentaje alcanzado
B68: OBJETIVO QUE ATIENDE EL PROCESO E IMPACTO (7) | D68: 1.- Contar con instalaciones y equipamiento de talleres y laboratorios modernos y con tecnologías de última generación, de tal manera que se asegure la calidad y pertinencia de la enseñanza que se imparte en las Universidades Tecnológicas.
B69: CALENDARIZACIÓN Y SEGUIMIENTO DE LAS PRINCIPALES ACTIVIDADES (8)
B70: ACTIVIDADES | D70: UNIDAD DE MEDIDA | E70: META ANUAL | G70: CALENDARIO 2017 CUATRIMESTRAL | S70: JUSTIFICACIÓN DE LAS DESVIACIONES POSITIVAS O NEGATIVAS (9) | Z70: ÁREA EJECUTORA (10)
G71: 1 | K71: 2 | O71: 3
G72: PROG | I72: ALC | K72: PROG | M72: ALC | O72: PROG | Q72: ALC
G73: # | H73: % | I73: # | J73: % | K73: # | L73: % | M73: # | N73: % | O73: # | P73: % | Q73: # | R73: %
B74: Construir edificio de docencia de dos niveles | D74: Edificio (#) | E74: 1 | M74: 0 | N74: 0 | O74: 1 | P74: 100 | Q74: 1 | R74: 100 | S74: Se construyó la 2a etapa del Centro de Creatividad e Innovación 4.0 como unidad de docencia de dos niveles. | Z74: Dirección de Planeación y Evaluación
B75: Contar con el proyecto de obra autorizado | D75: Proyecto (#) | E75: 1 | G75: 1 | H75: 100 | I75: 1 | J75: 100 | M75: 0 | N75: 0 | S75: Se cuenta con el proyecto de obra autorizado | Z75: Dirección de Planeación y Evaluación
B79: DESCRIPCIÓN DEL ALCANCE DEL INDICADOR Y EFECTO SOCIOECONOMICO (11)
B82: M. en C. José Carlos Arredondo Velázquez | Q82: Ing. Ezequiel Aguilar Bernal
B83: Rector | Q83: Encargado de la Dirección de Planeación y Evaluación

Sheet 4.-CEDULA-equidad
B1: PROGRAMA OPERATIVO ANUAL 2017
B3: FORMATO 01 "DESARROLLO DE PROCESOS"
B5: UNIVERSIDAD:TECNOLÓGICA DE QUERÉTARO | AX5: ACCESO Y PERMANENCIA DE LA EDUCACIÓN DE GRUPOS VULNERABLES
AX6: INDICADOR | AY6: FÓRMULA | AZ6: unidad de medida | BA6: meta nacional
B7: DENOMINACIÓN DEL PROCESO: (1) EQUIDAD + GRUPOS VULNERABLES | P7: NUM. DE PROCESO (2) | X7: TIPO DE PROCESO (3) | AX7: Número de alumnos de origen indígena atendidos en la institución | AY7: (Número de alumnos de origen indígena en el año t/número total de alumnos en el año t)*100 | AZ7: Alumnos | BA7: 9000
AX8: Porcentaje de alumnos de origen indígena becados | AY8: (Número de alumnos de origen indígena becados/ número de alumnos)*100 | AZ8: Alumnos | BA8: 56
P9: 4 | X9: Eficiencia | AX9: ATENCIÓN EDUCATIVA DE LAS PERSONAS CON DISCAPACIDAD
AX10: INDICADOR | AY10: FÓRMULA | AZ10: unidad de medida | BA10: meta nacional
B11: Área ejecutora ( 4 ) | AX11: Número de alumnos atendidos con algun tipo de dicapacidad | AY11: (Número de alumnos con algun tipo de discapacidad en el año t/número total de estudiantes en el año t)*100 | AZ11: Alumnos | BA11: 1745
AX12: Acondicionamiento de espacios para personas con discapacidad | AY12: (Número de Espacios para personas con discapacidad acondicionados/número de espacios para personas con discapacidad programados para acondicionar)*100 | AZ12: Espacios | BA12: 101
B13: Subdirección de Vinculación Académica | AX13: La Institución forma parte de la Red Nacional Incluyente para personas con discapacidad | AY13: NOTA: Poner sí o no únicamente | AZ13: certificación | BA13: 30
B14: Líneas estratégicas del PIDE del SUT o SUP 2013-2018 al que se da atención. ( 5 ) | AX14: Personal de la UT con alguna discapacidad | AY14: (Número de personas que trabajan para la Universidad con algún tipo de discapacidad/número total de la plantilla laboral) * 100 | AZ14: Personas | BA14: 284
B15: Igualdad de Oportunidades y no discriminación contra las mujeres. | AX15: IGUALDAD DE OPORTUNIDADES Y NO DISCRIMINACIÓN CONTRA LAS MUJERES
B16: INDICADORES ( 6 ) | AX16: INDICADOR | AY16: FÓRMULA | AZ16: unidad de medida | BA16: meta nacional
B17: NOMBRE DEL INDICADOR (6.1) | C17: FORMULA | D17: UNIDAD DE MEDIDA | E17: META NACIONAL 2017 PIDE 2013-2018 | J17: CONTEXTO ACTUAL Y A FUTURO DEL INDICADOR (6.2) | V17: Total alcanzado (Se reporta en el tercer cuatrimestre) 86.3) | AX17: Cursos impartidos sobre equidad de género | AY17: Cursos de género impartidos en el año/Total de cursos impartidos por la institución*100 | AZ17: Cursos | BA17: 586
B18: Indicador: Porcentaje de estudiantes mujeres becadas | C18: =(IF(B18="Cursos impartidos sobre equidad de género",AY17,IF(B18="Indicador: Porcentaje de estudiantes mujeres atendidas en la institución",AY18,IF(B18="Indicador: Porcentaje de estudiantes mujeres becadas",AY19,IF(B18="Certificación en el Modelo de Equidad de Género (MEG)",AY20))))) -> (Número de estudiantes mujeres becadas/ número total de estudiantes mujeres en la institución)*100 | D18: =(IF(B18="Cursos impartidos sobre equidad de género",AZ17,IF(B18="Indicador: Porcentaje de estudiantes mujeres atendidas en la institución",AZ18,IF(B18="Indicador: Porcentaje de estudiantes mujeres becadas",AZ19,IF(B18="Certificación en el Modelo de Equidad de Género (MEG)",AZ20))))) -> Mujeres becadas | E18: =(IF(B18="Cursos impartidos sobre equidad de género",BA17,IF(B18="Indicador: Porcentaje de estudiantes mujeres atendidas en la institución",BA18,IF(B18="Indicador: Porcentaje de estudiantes mujeres becadas",BA19,IF(B18="Certificación en el Modelo de Equidad de Género (MEG)",BA20))))) -> 54 | J18: 2016 | P18: 2017 | AX18: Indicador: Porcentaje de estudiantes mujeres atendidas en la institución | AY18: (Número de estudiantes mujeres atendidas en la institución/ número total de estudiantes en la institución)*100 | AZ18: Mujeres atendidas | BA18: 45
J19: Número actual | M19: Porcentaje actual | P19: Número a lograr | S19: Porcentaje a lograr | V19: Número alcanzado | Y19: Porcentaje alcanzado | AX19: Indicador: Porcentaje de estudiantes mujeres becadas | AY19: (Número de estudiantes mujeres becadas/ número total de estudiantes mujeres en la institución)*100 | AZ19: Mujeres becadas | BA19: 54
J20: 3000 | M20: =(3000/6330)*100 -> 47.39336493 | P20: 3000 | S20: =(3000/6330)*100 -> 47.39336493 | V20: 3319 | Y20: =(3319/6995)*100 -> 47.44817727 | AX20: Certificación en el Modelo de Equidad de Género (MEG) | AY20: Certificación en el Modelo de Equidad de Género (MEG) (NOTA: Poner sí o no únicamente) | AZ20: certificación | BA20: 90
B21: NOMBRE DEL INDICADOR (6.1) | C21: FORMULA | D21: UNIDAD DE MEDIDA | E21: META NACIONAL 2017 PIDE 2013-2018 | J21: CONTEXTO ACTUAL Y A FUTURO DEL INDICADOR (6.2) | V21: Total alcanzado (Se reporta en el tercer cuatrimestre) 86.3) | AX21: TIPO DE PROCESO
B22: Indicador: Porcentaje de estudiantes mujeres atendidas en la institución | C22: =(IF(B22="Cursos impartidos sobre equidad de género",AY17,IF(B22="Indicador: Porcentaje de estudiantes mujeres atendidas en la institución",AY18,IF(B22="Indicador: Porcentaje de estudiantes mujeres becadas",AY19,IF(B22="Certificación en el Modelo de Equidad de Género (MEG)",AY20))))) -> (Número de estudiantes mujeres atendidas en la institución/ número total de estudiantes en la institución)*100 | D22: =(IF(B22="Cursos impartidos sobre equidad de género",AZ17,IF(B22="Indicador: Porcentaje de estudiantes mujeres atendidas en la institución",AZ18,IF(B22="Indicador: Porcentaje de estudiantes mujeres becadas",AZ19,IF(B22="Certificación en el Modelo de Equidad de Género (MEG)",AZ20))))) -> Mujeres atendidas | E22: =(IF(B22="Cursos impartidos sobre equidad de género",BA17,IF(B22="Indicador: Porcentaje de estudiantes mujeres atendidas en la institución",BA18,IF(B22="Indicador: Porcentaje de estudiantes mujeres becadas",BA19,IF(B22="Certificación en el Modelo de Equidad de Género (MEG)",BA20))))) -> 45 | J22: 2016 | P22: 2017 | AX22: Eficiencia
J23: Número actual | M23: Porcentaje actual | P23: Número a lograr | S23: Porcentaje a lograr | V23: Número alcanzado | Y23: Porcentaje alcanzado | AX23: Eficacia
J24: 6330 | M24: =((2264+1893+2173)/(5928+4909+5807))*100 -> 38.03172314 | P24: 6330 | S24: =((2264+1893+2173)/(5928+4909+5807))*100 -> 38.03172314 | V24: 6995 | Y24: =(6995/18245)*100 -> 38.33927103 | AX24: Pertinencia
B25: OBJETIVO QUE ATIENDE EL PROCESO E IMPACTO (7) | C25: 1.- Adoptar la transveraslidad de la perspectiva de género en las Instituciones del Subsistema de Universidades Tecnológicas, fijando parámetros e indicadores que permitan su medición. | AX25: Vinculación
B26: CALENDARIZACIÓN Y SEGUIMIENTO DE LAS PRINCIPALES ACTIVIDADES (8) | AX26: Equidad de Género
B27: ACTIVIDADES | D27: UNIDAD DE MEDIDA | E27: META ANUAL | F27: CALENDARIO 2017 CUATRIMESTRAL | R27: JUSTIFICACIÓN DE LAS DESVIACIONES POSITIVAS O NEGATIVAS (9) | Y27: AREA EJECUTORA (10)
F28: 1 | J28: 2 | N28: 3
F29: PROG | H29: ALC | J29: PROG | L29: ALC | N29: PROG | P29: ALC
F30: # | G30: % | H30: # | I30: % | J30: # | K30: % | L30: # | M30: % | N30: # | O30: % | P30: # | Q30: %
B31: Implementar programas de becas para mujeres | D31: Programas de becas (#) | E31: 1 | H31: 1 | I31: 100 | L31: 0 | M31: 0 | N31: 1 | O31: 100 | R31: Se cuenta con un programa denominado "Apoyo a madres jefas de familia" operado por Conacyt. | Y31: Departamento de Vinculación Estudiantil
B32: Incluir acciones para captación de mujeres en el Programa de Captación de Alumnos | D32: Acciones (#) | E32: 1 | H32: 0 | I32: 0 | L32: 0 | M32: 0 | N32: 1 | O32: 100 | P32: 1 | Q32: 100 | R32: Se difundió el Modelo Educativo a estudiantes mujeres de bachillerato en los distintos bachilleratos en los que se participó en la Campaña de Captación de Alumnos. | Y32: Departamento de Vinculación Estudiantil
B35: DESCRIPCIÓN DEL ALCANCE DEL INDICADOR Y EFECTO SOCIOECONOMICO (11)
B37: M. en C. José Carlos Arredondo Velázquez | P37: Lic. Miguel Ángel Aguilar Marmolejo
B38: Rector | P38: Subdirector de Vinculación Académica
B43: PROGRAMA OPERATIVO ANUAL 2017
B45: FORMATO 01 "DESARROLLO DE PROCESOS"
B47: UNIVERSIDAD: TECNOLÓGICA DE QUERÉTARO
B49: DENOMINACIÓN DEL PROCESO: (1) EQUIDAD + GRUPOS VULNERABLES | P49: NUM. DE PROCESO (2) | X49: TIPO DE PROCESO (3)
P51: 4 | X51: Eficiencia
B53: ÁREA EJECUTORA( 4 )
B55: Subdirección de Vinculación Académica
B56: Líneas estratégicas del PIDE del SUT o SUP 2013-2018 al que se da atención. ( 5 )
B57: Inclusión Educativa y Atención a Personas con Requerimiento Especial y Aptitudes Sobresalientes.
B58: INDICADORES ( 6 )
B59: NOMBRE DEL INDICADOR (6.1) | C59: FORMULA | D59: UNIDAD DE MEDIDA | E59: META NACIONAL 2017 PIDE 2013-2018 | J59: CONTEXTO ACTUAL Y A FUTURO DEL INDICADOR (6.2) | V59: Total alcanzado (Se reporta en el tercer cuatrimestre) (6.3)
B60: Número de alumnos atendidos con algun tipo de dicapacidad | C60: =(IF(B60="Número de alumnos atendidos con algun tipo de dicapacidad",AY11,IF(B60="Acondicionamiento de espacios para personas con discapacidad",AY12,IF(B60="La Institución forma parte de la Red Nacional Incluyente para personas con discapacidad",AY13,IF(B60="Personal de la UT con alguna discapacidad",AY14))))) -> (Número de alumnos con algun tipo de discapacidad en el año t/número total de estudiantes en el año t)*100 | D60: =(IF(B60="Número de alumnos atendidos con algun tipo de dicapacidad",AZ11,IF(B60="Acondicionamiento de espacios para personas con discapacidad",AZ12,IF(B60="La Institución forma parte de la Red Nacional Incluyente para personas con discapacidad",AZ13,IF(B60="Personal de la UT con alguna discapacidad",AZ14))))) -> Alumnos | E60: =(IF(B60="Número de alumnos atendidos con algun tipo de dicapacidad",BA11,IF(B60="Acondicionamiento de espacios para personas con discapacidad",BA12,IF(B60="La Institución forma parte de la Red Nacional Incluyente para personas con discapacidad",BA13,IF(B60="Personal de la UT con alguna discapacidad",BA14))))) -> 1745 | J60: 2016 | P60: 2017
J61: Número actual | M61: Porcentaje actual | P61: Número a lograr | S61: Porcentaje a lograr | V61: Número alcanzado | Y61: Porcentaje alcanzado
J62: 27 | M62: =(27/5807)*100 -> 0.4649560875 | P62: 27 | S62: =(27/6356)*100 -> 0.4247954688 | V62: 48 | Y62: =(48/6456)*100 -> 0.7434944238
B63: NOMBRE DEL INDICADOR (6.1) | C63: FORMULA | D63: UNIDAD DE MEDIDA | E63: META NACIONAL 2017 PIDE 2013-2018 | J63: CONTEXTO ACTUAL Y A FUTURO DEL INDICADOR (6.2) | V63: Total alcanzado (Se reporta en el tercer cuatrimestre) (6.3)
J64: 2016 | P64: 2017
J65: Número actual | M65: Porcentaje actual | P65: Número a lograr | S65: Porcentaje a lograr | V65: Número alcanzado | Y65: Porcentaje alcanzado
AC66: IDEM
B67: OBJETIVO QUE ATIENDE EL PROCESO E IMPACTO (7) | C67: 1.- Prestar servicios de formación profesional a personas con discapacidad, a través de un modelo propio que atienda los aspectos de inclusión y empleabilidad, que incorpore la participación de la sociedad civil, gobiernos locales y empresarios.
B68: CALENDARIZACIÓN Y SEGUIMIENTO DE LAS PRINCIPALES ACTIVIDADES (8)
B69: ACTIVIDADES | D69: UNIDAD DE MEDIDA | E69: META ANUAL | F69: CALENDARIO 2017 CUATRIMESTRAL | R69: JUSTIFICACIÓN DE LAS DESVIACIONES POSITIVAS O NEGATIVAS (9) | Y69: AREA EJECUTORA (10)
F70: 1 | J70: 2 | N70: 3
F71: PROG | H71: ALC | J71: PROG | L71: ALC | N71: PROG | P71: ALC
F72: # | G72: % | H72: # | I72: % | J72: # | K72: % | L72: # | M72: % | N72: # | O72: % | P72: # | Q72: %
B73: Otorgar becas a alumnos con alguna discapacidad | D73: Becas | E73: =(2/27)*100 -> 7.407407407 | H73: =(35/37)*100 -> 94.59459459 | I73: =(H73*O73)/N73 -> 1277.027027 | L73: =(5/43)*100 -> 11.62790698 | M73: =(L73*O73)/N73 -> 156.9767442 | N73: =(2/27)*100 -> 7.407407407 | O73: 100 | P73: =(17/48)*100 -> 35.41666667 | Q73: =(P73*O73)/N73 -> 478.125 | R73: Se cuenta con 17 alumnos becados que cuentan con discapacidad lo cuál representa 35.42% . | Y73: Departamento de Vinculación Estudiantil
B74: Organizar reuniones de difusión de becas a alumnos con alguna discapacidad | D74: Reuniones (#) | E74: 1 | H74: 0 | I74: 0 | L74: 0 | M74: 0 | N74: 1 | O74: 100 | P74: 1 | Q74: 100 | R74: La reunión de difusión se realizó el jueves 7 y viernes 8 de septiembre cubriendo turnos matutino y vespertino. | Y74: Departamento de Vinculación Estudiantil
B77: DESCRIPCIÓN DEL ALCANCE DEL INDICADOR Y EFECTO SOCIOECONOMICO (11)
B80: M. en C. José Carlos Arredondo Velázquez | P80: Lic. Miguel Ángel Aguilar Marmolejo
B81: Rector | P81: Subdirector de Vinculación Académica
B86: PROGRAMA OPERATIVO ANUAL 2017
B88: FORMATO 01 "DESARROLLO DE PROCESOS"
B90: UNIVERSIDAD: TECNOLÓGICA DE QUERÉTARO
B92: DENOMINACIÓN DEL PROCESO: (1) EQUIDAD + GRUPOS VULNERABLES | P92: NUM. DE PRCESO (2) | X92: TIPO DE PROCESO (3)
P94: 4 | X94: Eficiencia
B96: ÁREA EJECUTORA( 4 )
B98: Subdirección de Vinculación Académica
B99: Líneas estratégicas del PIDE del SUT o SUP 2013-2018 al que se da atención. ( 5 )
B100: Promover la eliminación de Barreras que Limitan al acceso y la Permanencia en la Educación de Grupos Vulnerables.
B101: INDICADORES ( 6 )
B102: NOMBRE DEL INDICADOR (6.1) | C102: FORMULA | D102: UNIDAD DE MEDIDA | E102: META NACIONAL 2017 PIDE 2013-2018 | J102: CONTEXTO ACTUAL Y A FUTURO DEL INDICADOR (6.2) | V102: Total alcanzado (Se reporta en el tercer cuatrimestre) (6.3)
B103: Número de alumnos de origen indígena atendidos en la institución | C103: =(IF(B103="Número de alumnos de origen indígena atendidos en la institución",AY7,IF(B103="Porcentaje de alumnos de origen indígena becados",AY8))) -> (Número de alumnos de origen indígena en el año t/número total de alumnos en el año t)*100 | D103: =(IF(B103="Número de alumnos de origen indígena atendidos en la institución",AZ7,IF(B103="Porcentaje de alumnos de origen indígena becados",AZ8))) -> Alumnos | E103: =(IF(B103="Número de alumnos de origen indígena atendidos en la institución",BA7,IF(B103="Porcentaje de alumnos de origen indígena becados",BA8))) -> 9000 | J103: 2016 | P103: 2017
J104: Número actual | M104: Porcentaje actual | P104: Número a lograr | S104: Porcentaje a lograr | V104: Número alcanzado | Y104: Porcentaje alcanzado
J105: 157 | M105: =(157/5807)*100 -> 2.703633546 | P105: 160 | S105: =(160/6356)*100 -> 2.517306482 | V105: 120 | Y105: =(120/6456)*100 -> 1.858736059
B106: NOMBRE DEL INDICADOR (6.1) | C106: FORMULA | D106: UNIDAD DE MEDIDA | E106: META NACIONAL 2017 PIDE 2013-2018 | J106: CONTEXTO ACTUAL Y A FUTURO DEL INDICADOR (6.2) | V106: Total alcanzado (Se reporta en el tercer cuatrimestre) (6.3)
B107: Porcentaje de alumnos de origen indígena becados | C107: =(IF(B107="Número de alumnos de origen indígena atendidos en la institución",AY7,IF(B107="Porcentaje de alumnos de origen indígena becados",AY8))) -> (Número de alumnos de origen indígena becados/ número de alumnos)*100 | D107: =(IF(B107="Número de alumnos de origen indígena atendidos en la institución",AZ7,IF(B107="Porcentaje de alumnos de origen indígena becados",AZ8))) -> Alumnos | E107: =(IF(B107="Número de alumnos de origen indígena atendidos en la institución",BA7,IF(B107="Porcentaje de alumnos de origen indígena becados",BA8))) -> 56 | J107: 2016 | P107: 2017
J108: Número actual | M108: Porcentaje actual | P108: Número a lograr | S108: Porcentaje a lograr | V108: Número alcanzado | Y108: Porcentaje alcanzado
J109: 157 | M109: =(157/470)*100 -> 33.40425532 | P109: 160 | S109: =(160/470)*100 -> 34.04255319 | V109: 115 | Y109: =(115/361)*100 -> 31.85595568
B110: OBJETIVO QUE ATIENDE EL PROCESO E IMPACTO (7) | C110: 1.- Incrementar la atención a la demanda de estudios de nivel superior de los grupos étnicos originarios de las entidades federativas en donde el Sistema de Universidades Tecnológicas tiene presencia, mediante la incorporación de nuevas alternativas y modalidades aducativas que favorezcan a los jóvenes indígenas egresados del nivel medio superior del país.
B111: CALENDARIZACIÓN Y SEGUIMIENTO DE LAS PRINCIPALES ACTIVIDADES (8)
B112: ACTIVIDADES | D112: UNIDAD DE MEDIDA | E112: META ANUAL | F112: CALENDARIO 2017 CUATRIMESTRAL | R112: JUSTIFICACIÓN DE LAS DESVIACIONES POSITIVAS O NEGATIVAS (9) | Y112: AREA EJECUTORA (10)
F113: 1 | J113: 2 | N113: 3
F114: PROG | H114: ALC | J114: PROG | L114: ALC | N114: PROG | P114: ALC
F115: # | G115: % | H115: # | I115: % | J115: # | K115: % | L115: # | M115: % | N115: # | O115: % | P115: # | Q115: %
B116: Implementar acciones para Captación de estudiantes de origen indígena en el programa de Captación de Alumnos | D116: Acciones (#) | E116: 1 | H116: 0 | I116: 0 | L116: 0 | M116: 0 | N116: 1 | O116: 100 | P116: 2 | Q116: =(P116*O116)/N116 -> 200 | R116: Se visitaron en el mes de octubre los bachilleratos de San Ildefonso ubicado en el municipio de Amealco y CECYTE Tierra Blanca Guanajuato, ambos identificados con alta población de origen indígena. | Y116: Departamento de Vinculación Estudiantil
B117: Organizar reuniones de difusión de becas a alumnos de origen indígena | D117: Reuniones (#) | E117: 1 | H117: 0 | I117: 0 | L117: 0 | M117: 0 | N117: 1 | O117: 100 | P117: 1 | Q117: 100 | R117: La reunión de difusión se realizó el jueves 7 y viernes 8 de septiembre cubriendo turnos matutino y vespertino. | Y117: Departamento de Vinculación Estudiantil
B121: DESCRIPCIÓN DEL ALCANCE DEL INDICADOR Y EFECTO SOCIOECONOMICO (11)
B125: M. en C. José Carlos Arredondo Velázquez | P125: Lic. Miguel Ángel Aguilar Marmolejo
B126: Rector | P126: Subdirector de Vinculación Académica
